Cogmind - Beta 9.3 @@@ ROGUE MODE // 2019.12.19 @ 22:21:32 // Winter2019/RPGLIKE Player: Horse Result: Destroyed by G-73 Enforcer with Phase Gun Performance ------------- Evolutions (9) 4500 Regions Visited (35) 7000 Robots Destroyed (573) 2865 Value Destroyed (30072) 30072 Prototype IDs (47) 940 Alien Tech Used (0) 0 Bonus (17793) 17793 TOTAL SCORE: 63170 Bonus ------- Triggered Max Security 1000 High Alert Combat Kills 5787 Follower Combat Kills 5665 Entered Garrisons 2000 Used RIF Installer 5000 Network Hubs Disabled 200 Friendly Fire -1859 Cogmind --------- Core Integrity 0/800 Matter 226/500 Energy 189/360 System Corruption 5% Temperature Cool (0) Movement Walking (110) Location -1/Access Parts ------- > --- POWER (1) -------- Cooled Deuterium Engine > --- PROPULSION (4) --- Biometal Leg Biometal Leg Biometal Leg > --- UTILITY (12) ----- Advanced Cooling System Long-range Terrain Scanner Recoil Nullifier Advanced Particle Charger Improved Weapon Cycler Centrium Medium Armor Plating Medium Reactive Plating Relay Coupler [C] (1) Relay Coupler [Sentry] (53) Relay Coupler [Hunter] (8) System Restoration Module Long-range Tractor Beam > --- WEAPON (5) ------- Enhanced Nova Cannon Tri-rail Accelerator Hardcell Cannon Improved Remote Datajack > --- INVENTORY (6) ---- Relay Coupler [Sentry] (62) Relay Coupler [Specialist] (56) Relay Coupler [Hunter] (54) Enhanced Nova Cannon Fusion Bomb Launcher Peak State ------------ > --- POWER ------------ Cooled Deuterium Engine > --- PROPULSION ------- Myomer Leg Myomer Leg Biometal Leg Biometal Leg > --- UTILITY ---------- Advanced Cooling System Long-range Terrain Scanner Recoil Nullifier Advanced Particle Charger Centrium Medium Armor Plating Medium Reactive Plating Relay Coupler [C] Relay Coupler [C] Relay Coupler [C] Relay Coupler [Sentry] Relay Coupler [Hunter] System Restoration Module > --- WEAPON ----------- Enhanced Nova Cannon Enhanced Nova Cannon Tri-rail Accelerator Hardcell Cannon > --- INVENTORY -------- Improved Weapon Cycler Relay Coupler [Specialist] Relay Coupler [Hunter] Long-range Tractor Beam Fusion Bomb Launcher Improved Remote Datajack [Rating: 152] Favorites ----------- Power Cooled Deuterium Engine Engine Cooled Deuterium Engine Power Core Light Nuclear Core Propulsion Armored Huge Wheel Leg Myomer Leg Wheel Armored Huge Wheel Utility Particle Charger Device Particle Charger Hackware Relay Coupler [Grunt] Protection Medium Reactive Plating Weapon Heavy Phase Cannon Energy Gun Cooled Pulse Rifle Energy Cannon Heavy Phase Cannon Ballistic Gun Enhanced Autogun Ballistic Cannon Mass Driver Launcher Precision Rocket Launcher Special Weapon Remote Datajack Build | -11 -10 -9 -9 -9 -8 -8 -8 -7 -7 -7 -7 -6 -6 -6 -6 -6 -5 -5 -5 -5 -4 -4 -4 -4 -4 -4 -4 -3 -3 -3 -3 -2 -1 -1 -1 ------- Run | Scr Mat Mat Sto Gar Mat Gar Mat Fac Gar Fac Gar Fac Was Fac Gar Fac Fac Gar Fac Gar Fac Was Fac Ext Cet Arc Hub Res Gar Res Gar Res Acc Gar Acc Slots Evolved 18 | 3 1 3 . . 2 1 1 . 1 . . 1 1 . . . 1 . 1 . . . . . . . . 1 . . . 1 . . . Power . | . . . . . . . . . . . . . . . . . . . . . . . . . . . . . . . . . . . . Propulsion 3 | 1 . . . . 1 . 1 . . . . . . . . . . . . . . . . . . . . . . . . . . . . Utility 11 | . 1 3 . . 1 1 . . . . . 1 1 . . . . . 1 . . . . . . . . 1 . . . 1 . . . Weapon 4 | 2 . . . . . . . . 1 . . . . . . . 1 . . . . . . . . . . . . . . . . . . Parts Attached 337 | 6 4 17 7 10 19 10 14 27 14 9 7 19 2 6 14 10 10 11 11 7 18 3 6 1 3 2 . 11 6 7 17 20 . 4 5 Power 12 | 1 1 1 1 . . . 1 2 . 2 . . . . . 2 . . . . . . 1 . . . . . . . . . . . . Engine 10 | 1 . 1 1 . . . 1 1 . 2 . . . . . 2 . . . . . . 1 . . . . . . . . . . . . Core 2 | . 1 . . . . . . 1 . . . . . . . . . . . . . . . . . . . . . . . . . . . Reactor . | . . . . . . . . . . . . . . . . . . . . . . . . . . . . . . . . . . . . Propulsion 33 | 2 2 . . 1 3 3 1 4 . 3 . . . . . . . . . . 6 . 3 . . . . 1 . . . 3 . . 1 Treads . | . . . . . . . . . . . . . . . . . . . . . . . . . . . . . . . . . . . . Leg 31 | 2 2 . . 1 3 3 1 4 . 1 . . . . . . . . . . 6 . 3 . . . . 1 . . . 3 . . 1 Wheel 2 | . . . . . . . . . . 2 . . . . . . . . . . . . . . . . . . . . . . . . . Hover . | . . . . . . . . . . . . . . . . . . . . . . . . . . . . . . . . . . . . Flight . | . . . . . . . . . . . . . . . . . . . . . . . . . . . . . . . . . . . . Utility 145 | . 1 13 . 1 6 . 4 16 5 1 4 8 2 4 5 3 6 7 7 3 6 3 2 1 3 1 . 5 2 5 6 12 . 2 1 Device 86 | . 1 3 . . 1 . 1 10 1 . 1 5 1 3 3 3 3 5 5 2 3 3 2 1 2 . . 5 2 4 4 11 . . 1 Storage . | . . . . . . . . . . . . . . . . . . . . . . . . . . . . . . . . . . . . Processor . | . . . . . . . . . . . . . . . . . . . . . . . . . . . . . . . . . . . . Hackware 26 | . . . . . . . 1 . 4 1 2 2 . . 2 . 2 2 . 1 2 . . . . 1 . . . 1 2 1 . 2 . Protection 33 | . . 10 . 1 5 . 2 6 . . 1 1 1 1 . . 1 . 2 . 1 . . . 1 . . . . . . . . . . Artifact . | . . . . . . . . . . . . . . . . . . . . . . . . . . . . . . . . . . . . Weapon 147 | 3 . 3 6 8 10 7 8 5 9 3 3 11 . 2 9 5 4 4 4 4 6 . . . . 1 . 5 4 2 11 5 . 2 3 Energy Gun 17 | 3 . . 2 . 1 . 1 2 1 . . 4 . 1 2 . . . . . . . . . . . . . . . . . . . . Energy Cannon 48 | . . 3 3 4 5 3 6 3 4 1 2 1 . . 1 1 1 1 1 . 2 . . . . . . 2 . 1 3 . . . . Ballistic Gun 1 | . . . . . 1 . . . . . . . . . . . . . . . . . . . . . . . . . . . . . . Ballistic Cannon 23 | . . . . . . . . . . . . . . . 2 2 1 1 2 2 1 . . . . . . 2 2 1 3 2 . 1 1 Launcher 25 | . . . 1 4 3 4 1 . 1 1 . 1 . . 1 1 . 1 1 . 1 . . . . . . 1 1 . 1 . . . 1 Special Weapon 33 | . . . . . . . . . 3 1 1 5 . 1 3 1 2 1 . 2 2 . . . . 1 . . 1 . 4 3 . 1 1 Impact Weapon . | . . . . . . . . . . . . . . . . . . . . . . . . . . . . . . . . . . . . Slashing Weapon . | . . . . . . . . . . . . . . . . . . . . . . . . . . . . . . . . . . . . Piercing Weapon . | . . . . . . . . . . . . . . . . . . . . . . . . . . . . . . . . . . . . Special Melee Weapon . | . . . . . . . . . . . . . . . . . . . . . . . . . . . . . . . . . . . . Unidentified Prototypes 19 | . . 1 2 . 2 . 2 2 . . . . . . . 2 1 . 1 . . 1 . . 1 . . 1 . 2 . 1 . . . Parts Lost 4 | . . . . . . . . . . . . . 1 . 1 . 1 . . . 1 . . . . . . . . . . . . . . Power . | . . . . . . . . . . . . . . . . . . . . . . . . . . . . . . . . . . . . Propulsion . | . . . . . . . . . . . . . . . . . . . . . . . . . . . . . . . . . . . . Utility 3 | . . . . . . . . . . . . . 1 . . . 1 . . . 1 . . . . . . . . . . . . . . Weapon 1 | . . . . . . . . . . . . . . . 1 . . . . . . . . . . . . . . . . . . . . Highest Loss Streak 1 | . . . . . . . . . . . . . 1 . 1 . 1 . . . 1 . . . . . . . . . . . . . . Average Slot Usage (%) 93 | . 97 99 99 99 99 99 96 99 99 90 87 87 87 87 87 88 88 89 87 84 85 94 94 95 94 95 95 95 95 94 94 94 95 94 93 Engine 6 | . 13 8 9 9 7 7 6 5 6 6 6 5 5 5 5 5 5 5 5 5 5 5 5 5 5 5 5 4 4 4 4 4 4 4 4 Leg 12 | . 27 20 18 17 19 22 21 26 25 5 . . . . . . . . . . 3 20 19 20 20 20 20 19 19 19 19 18 18 18 17 Wheel 4 | . . . . . . . . . . 9 12 11 11 11 11 11 10 10 10 10 8 . . . . . . . . . . . . . . Device 19 | . 13 7 18 18 22 22 20 21 15 12 11 17 27 25 23 30 30 18 24 25 21 19 20 20 19 15 15 18 19 18 19 21 31 28 28 Hackware 10 | . . . . . . . 4 6 12 18 18 16 16 16 14 7 4 12 10 9 14 20 20 20 20 24 25 23 23 23 22 21 13 15 15 Protection 14 | . . 29 27 27 24 22 20 18 15 12 12 10 4 5 11 11 11 15 12 15 13 10 10 10 10 10 10 9 9 9 9 9 9 9 9 Energy Gun 5 | . 41 26 . . . . . 1 12 12 7 9 11 10 3 . . . . . . . . . . . . . . . . . . . . Energy Cannon 11 | . . 4 26 26 24 20 20 18 5 7 12 8 11 11 10 11 10 10 10 8 9 10 10 10 10 10 10 9 5 4 8 9 9 9 7 Ballistic Cannon 3 | . . . . . . . . . . . . . . . 2 6 9 10 11 9 9 10 10 10 10 5 5 6 12 14 6 7 4 5 5 Special Weapon 1 | . . . . . . . . . 3 3 4 2 . . 2 1 2 3 . 1 . . . . . 5 5 . . . 1 1 4 3 3 Naked Turns . | . . . . . . . . . . . . . . . . . . . . . . . . . . . . . . . . . . . . Heaviest Build 104 | 9 13 36 33 40 58 60 65 69 58 48 69 72 67 74 84 87 95 96 95 93 93 88 88 88 93 82 81 95 93 91 96 103 98 104 103 Greatest Support 127 | 20 26 36 36 43 55 60 70 85 83 83 71 71 71 71 71 71 71 71 71 71 115 115 115 115 115 115 115 118 118 118 118 127 127 127 127 Greatest Overweight (x) 2 | . . 1 . . 1 1 1 1 . . 1 1 . 1 1 1 1 1 1 1 2 . . . . . . . . . . . . . . Average Overweight (x) . | . . . . . . . . . . . . . . . 1 1 1 1 1 1 . . . . . . . . . . . . . . . Largest Inventory Capacity 6 | . 1 2 3 5 5 5 5 6 6 6 6 6 6 6 6 6 6 6 6 6 6 6 6 6 6 6 6 6 6 6 6 6 6 6 6 Average Capacity 5 | . . 1 2 4 5 5 5 5 6 6 6 6 6 6 6 6 6 6 6 6 6 6 6 6 6 6 6 6 6 6 6 6 6 6 6 Most Carried 6 | . 1 2 3 5 5 5 5 6 6 6 6 6 6 6 6 6 6 6 6 6 6 6 6 6 6 6 6 6 6 6 6 6 3 6 6 Average Carried 5 | . . 1 2 4 4 5 4 5 5 5 5 5 5 5 5 5 5 5 5 5 5 5 6 6 5 6 6 5 6 5 5 5 3 5 5 Final Capacity 6 | . 1 2 3 5 5 5 5 6 6 6 6 6 6 6 6 6 6 6 6 6 6 6 6 6 6 6 6 6 6 6 6 6 6 6 6 Final Carried 6 | . . 2 3 5 5 5 5 6 6 5 6 6 4 6 6 6 6 6 5 6 6 6 6 6 6 6 6 6 6 6 6 3 3 6 5 Class Distribution -------------------- 30% | Hacker-Tank 13% | Botlord-Tank 8% | Hacker-Mutant 7% | Bothacker-Tank 7% | Tank 6% | Bothacker-Mutant 6% | Botlord-Mutant 5% | Commander-Mutant 4% | Gunner Dominant Class ---------------- Gunner | -10/Materials Tank | -9/Materials Hacker-Tank | -9/Storage Hacker-Tank | -9/Garrison Hacker-Tank | -8/Materials Hacker-Tank | -8/Garrison Hacker-Tank | -8/Materials Hacker-Tank | -7/Factory Hacker-Tank | -7/Garrison Commander-Mutant | -7/Factory Commander-Mutant | -7/Garrison Bothacker-Tank | -6/Factory Bothacker-Skirmisher | -6/Waste Bothacker-Gunner | -6/Factory Bothacker-Mutant | -6/Garrison Bothacker-Mutant | -6/Factory Hacker-Tank | -5/Factory Hacker-Mutant | -5/Garrison Hacker-Tank | -5/Factory Bothacker-Tank | -5/Garrison Botlord-Tank | -4/Factory Botlord-Tank | -4/Waste Botlord-Mutant | -4/Factory Botlord-Tank | -4/Extension Botlord-Tank | -4/Cetus Botlord-Mutant | -4/Archives Botlord-Mutant | -4/Hub_04(d) Botlord-Tank | -3/Research Botlord-Tank | -3/Garrison Botlord-Skirmisher | -3/Research Botlord-Tank | -3/Garrison Botlord-Tank | -2/Research Botlord-Mutant | -1/Access Botlord-Mutant | -1/Garrison Botlord-Skirmisher | -1/Access Resources | -11 -10 -9 -9 -9 -8 -8 -8 -7 -7 -7 -7 -6 -6 -6 -6 -6 -5 -5 -5 -5 -4 -4 -4 -4 -4 -4 -4 -3 -3 -3 -3 -2 -1 -1 -1 ----------- Run | Scr Mat Mat Sto Gar Mat Gar Mat Fac Gar Fac Gar Fac Was Fac Gar Fac Fac Gar Fac Gar Fac Was Fac Ext Cet Arc Hub Res Gar Res Gar Res Acc Gar Acc Matter Collected 9770 | 260 40 130 110 200 216 120 247 176 274 135 140 320 . . 374 250 642 271 679 670 799 45 15 445 195 . 64 371 499 . 727 930 . 251 175 Remotely 3988 | . . . . . . . . . . . . . . . . . 337 193 501 154 777 35 . 265 195 . . 158 499 . 519 160 . 195 . Salvage Created 20841 | 151 676 2067 960 537 1443 390 1327 718 861 203 151 970 . 71 443 273 1218 357 1049 696 1194 480 94 438 155 120 84 809 380 15 617 1120 . 263 511 Parts 1115 | 7 45 122 75 63 76 20 64 43 26 23 9 48 . 12 38 11 57 20 55 31 42 2 4 19 16 4 3 36 27 4 25 49 . 20 19 Haulers Intercepted 15 | . 2 5 2 . 2 . . 2 . . . . . . . 1 1 . . . . . . . . . . . . . . . . . . Recyclers Shooed 10 | . 1 . 1 . . . 1 . . . . . . . . . 2 . 2 . 1 . . . . . . 1 . . . . . . 1 Parts Field Recycled . | . . . . . . . . . . . . . . . . . . . . . . . . . . . . . . . . . . . . Retrieved Matter . | . . . . . . . . . . . . . . . . . . . . . . . . . . . . . . . . . . . . Parts Self-Destructed . | . . . . . . . . . . . . . . . . . . . . . . . . . . . . . . . . . . . . Prevented . | . . . . . . . . . . . . . . . . . . . . . . . . . . . . . . . . . . . . Kills | -11 -10 -9 -9 -9 -8 -8 -8 -7 -7 -7 -7 -6 -6 -6 -6 -6 -5 -5 -5 -5 -4 -4 -4 -4 -4 -4 -4 -3 -3 -3 -3 -2 -1 -1 -1 ------- Run | Scr Mat Mat Sto Gar Mat Gar Mat Fac Gar Fac Gar Fac Was Fac Gar Fac Fac Gar Fac Gar Fac Was Fac Ext Cet Arc Hub Res Gar Res Gar Res Acc Gar Acc Combat Hostiles Destroyed 435 | . 14 34 22 30 25 17 21 8 16 5 4 21 . 4 14 5 18 9 23 24 18 1 2 12 4 1 . 13 17 3 17 14 . 8 11 Melee 1 | . . . . . . . . . . . . . . . . . . . . . . . . . . . . . . . . . . . 1 Guns 54 | . 11 22 . . . . . . 8 3 . 6 . 1 3 . . . . . . . . . . . . . . . . . . . . Cannons 321 | . . 5 22 22 22 5 19 8 4 . 3 9 . 3 11 5 18 7 21 24 18 1 2 12 4 1 . 12 15 3 13 14 . 8 10 AOE 55 | . 2 7 . 8 3 12 1 . 3 2 . 6 . . . . . 2 2 . . . . . . . . 1 2 . 4 . . . . Classes Destroyed 21 | 3 5 3 1 2 . . . 1 . . 1 1 . . 1 . . . 2 . . 1 . . . . . . . . . . . . . Worker 26 | 2 1 4 . . . . 2 . . 1 . 1 . . . . 3 . 3 . 3 . . . . . . 2 . . . 3 . . 1 Builder 23 | . 1 2 5 . 3 . 1 1 . 2 . 1 . . . . 1 . 1 . 3 . . . . . . . . . . . . . 2 Tunneler 3 | 1 . . . . . . . 1 . . . 1 . . . . . . . . . . . . . . . . . . . . . . . Hauler 15 | . 2 5 2 . 2 . . 2 . . . . . . . 1 1 . . . . . . . . . . . . . . . . . . Recycler 24 | 1 2 4 . . 1 . 5 . . . . 1 . . . 1 2 . 3 . 1 . . . . . . 1 . . . 1 . . 1 Mechanic 1 | . . . . . . . . . . . . . . . . . . . 1 . . . . . . . . . . . . . . . . Operator 11 | . . 4 2 . . . 1 1 . . . 1 . . . . 1 . . . . . 1 . . . . . . . . . . . . Drone 1 | . . . . . . . . . . . . . . . . . . . 1 . . . . . . . . . . . . . . . . Watcher 29 | . 2 5 2 . 4 . 2 3 . . 1 1 . . . . . . 2 . . . . . 1 . . 1 . 1 . 4 . . . Swarmer 106 | . 3 8 7 15 3 7 3 . . . 1 9 . . . . . 5 11 7 . . . 1 . . . . 16 . 6 . . 4 . Saboteur 4 | . . . . . . . . . . . . 1 . . . 1 . . . . 1 . . . . . . . . . . . . . 1 Grunt 148 | . 11 16 6 8 12 8 7 . 8 3 . 5 . 1 7 1 7 . 4 11 10 . 1 6 2 . . 1 . . 8 1 . 1 3 Brawler 4 | . . 1 . . 1 . . . 1 . . . . . . . . . . . . . . . . . . . . . . . . . 1 Duelist 16 | . . . . 1 . 1 3 . 2 . 1 3 . . . 2 . . . 1 . . . . . . . . . . . . . . 2 Protector 2 | . . . 1 . . . . . . . . . . . . . . . . . . . . . . . . . . . . . . . 1 Sentry 78 | . . 9 8 5 6 1 7 5 5 . 1 3 . 1 3 . 4 3 3 3 . . . 2 . 1 . 1 1 . 3 3 . . . Specialist 2 | . . . . . . . . . . . . . . . 2 . . . . . . . . . . . . . . . . . . . . Hunter 24 | . . . . 1 3 . 1 1 . 1 1 . . 1 . . . 1 2 2 3 . . 1 . . . 5 . . . 1 . . . Programmer 45 | . . . . . . . . 2 . 1 . 1 . 1 2 1 8 . 3 . 4 . 1 . . . . 5 . 3 . 8 . 2 3 Behemoth 6 | . . . . . . . . . . . 1 . . . . . . . . . . . . 2 . . . 1 . . . 1 . 1 . Compactor 1 | . . . . . . . . . . . . . . . . . . . . . . 1 . . . . . . . . . . . . . Cetus Guard 2 | . . . . . . . . . . . . . . . . . . . . . . . . . 2 . . . . . . . . . . Thug 1 | . . . . . . . . . . . . . . . . . . . . . . . . . . . 1 . . . . . . . . Savage 1 | . . . . . . . . . . . . . . . . . . . . . . . . . 1 . . . . . . . . . . Best Kill Streak 15 | 3 5 8 6 7 5 14 7 4 12 3 1 8 . 1 4 3 6 4 8 8 10 1 1 6 3 1 . 5 11 3 7 5 . 3 15 Combat Bots Only 14 | . 4 4 4 7 4 14 4 2 12 2 1 5 . 1 4 3 5 4 5 8 9 1 1 6 2 1 . 3 11 3 7 2 . 3 11 Max Kills in Single Turn 6 | 1 2 3 1 2 2 3 3 1 2 3 1 6 . 1 1 1 3 2 2 1 2 1 1 1 2 1 1 2 2 1 2 2 . 1 2 Gunslinging 1 | . 1 1 . . . . . . . . . 1 . . . . . . . . . . . . . . . . . . . . . . . Exploded 3 | . 1 2 . 2 2 3 1 . 2 2 . 3 . . . . . 2 2 . . . . . . . . 1 2 . 2 . . . . Melee 1 | . . . . . . . . . . . . . . . . . . . . . . . . . . . . . . . . . . . 1 Uniques/NPCs Destroyed . | . . . . . . . . . . . . . . . . . . . . . . . . . . . . . . . . . . . . Combat | -11 -10 -9 -9 -9 -8 -8 -8 -7 -7 -7 -7 -6 -6 -6 -6 -6 -5 -5 -5 -5 -4 -4 -4 -4 -4 -4 -4 -3 -3 -3 -3 -2 -1 -1 -1 -------- Run | Scr Mat Mat Sto Gar Mat Gar Mat Fac Gar Fac Gar Fac Was Fac Gar Fac Fac Gar Fac Gar Fac Was Fac Ext Cet Arc Hub Res Gar Res Gar Res Acc Gar Acc Damage Taken 15772 | . 375 1000 457 668 803 131 354 188 592 170 464 555 46 167 817 193 435 266 668 525 983 . 21 554 227 47 87 963 524 296 699 1211 . 206 1080 Core 11575 | . 303 772 317 470 580 74 217 145 343 113 306 440 36 137 632 150 339 140 427 327 648 . 16 431 179 45 69 751 396 233 542 976 . 158 863 Absorbed by Shields 959 | . . . . . . . . . . . . . . . 30 . . 55 . 256 . . . . . . . . 439 . 104 . . 75 . Redirected to Core 10444 | . 222 693 284 414 483 74 205 112 305 113 279 376 36 108 584 136 339 131 408 272 574 . 16 403 153 22 69 685 374 233 511 866 . 158 806 Core Remaining (%) 96 | 100 100 . . 97 . . 93 . . . 95 . . . . 97 . . . 95 . . . . . . 85 . . . 100 100 . . . Volleys Fired 1201 | 11 36 83 62 49 63 20 52 26 61 16 61 59 13 7 41 21 49 27 44 49 50 1 4 26 11 5 1 38 34 10 38 71 1 29 32 Largest 5 | 3 3 3 3 3 3 3 3 3 3 3 4 4 4 4 4 4 5 5 5 4 4 4 4 4 4 3 3 4 4 4 4 4 1 4 3 Hottest 408 | 120 120 204 204 204 211 211 211 195 185 130 300 316 284 284 310 310 408 408 367 313 313 313 313 313 313 256 256 351 351 295 365 365 120 365 245 Shots Fired 3070 | 23 106 245 186 127 185 40 148 72 139 26 108 117 27 28 93 59 143 73 126 142 137 4 11 96 42 7 3 118 65 28 80 150 1 48 67 Gun 597 | 23 106 218 . . . . . 2 89 10 56 35 19 15 24 . . . . . . . . . . . . . . . . . . . . Cannon 2306 | . . 27 186 122 183 31 146 70 39 9 38 62 8 13 64 55 140 65 124 140 129 4 11 96 42 3 3 117 60 28 68 130 1 38 54 Launcher 36 | . . . . 5 2 9 2 . 2 2 . 3 . . . . . 2 2 . . . . . . . . 1 1 . 2 . . . 3 Special 131 | . . . . . . . . . 9 5 14 17 . . 5 4 3 6 . 2 8 . . . . 4 . . 4 . 10 20 . 10 10 Kinetic 642 | . . . . . . . . . . . . . . . 9 24 56 28 68 64 75 2 6 46 22 1 1 47 37 18 23 62 . 18 35 Thermal 1914 | . . 27 186 122 183 31 146 72 128 19 94 97 27 28 79 31 84 37 56 76 54 2 5 50 20 2 2 70 23 10 45 68 1 20 19 Explosive 29 | . . . . 4 2 9 . . . . . 3 . . . . . 2 2 . . . . . . . . 1 1 . 2 . . . 3 Electromagnetic 354 | 23 106 218 . 1 . . 2 . 2 2 . . . . . . . . . . . . . . . . . . . . . . . . . Robot Hit Streak 52 | 4 12 21 52 25 28 15 45 15 22 15 21 31 37 28 22 18 28 16 16 33 18 4 12 26 20 26 . 23 22 16 13 38 . 20 23 Robot Miss Streak 4 | 1 2 4 2 1 2 1 2 4 1 1 1 2 1 1 2 2 2 1 2 1 4 . . 2 1 1 . 4 3 3 2 4 . 1 2 Penetration Max 1 | . . . . . . . . . . . . . . . 1 1 1 . 1 . 1 . . . 1 . . . . . . . . . . Secondary Targets 10 | . 2 7 . . . . . . . . . 1 . . . . . . . . . . . . . . . . . . . . . . . Max Gunslinging Chain 2 | . 1 2 . . . . . . . . . 1 . . . . . . . . . . . . . . . . . . . . . . . Shots Hit Robots 1931 | 12 72 149 92 62 125 20 91 46 97 17 58 77 19 17 63 43 83 43 76 88 92 3 6 64 33 6 . 75 35 18 59 105 . 37 48 Core Hits 896 | 4 34 73 36 37 48 27 35 21 29 10 13 45 1 7 23 24 38 13 53 43 42 1 5 28 19 2 1 34 24 7 32 39 . 13 35 Critical Hits 73 | . . 3 11 3 13 3 6 2 . . 1 1 . 1 1 3 3 3 . 1 4 . . 2 1 . . 3 2 . 2 2 . 1 1 Critical Kills 25 | . . 1 4 1 6 2 1 . . . . . . 1 . . . 3 . . . . . 2 . . . 1 1 . 1 . . 1 . Critical Parts Destroyed 45 | . . 2 7 1 6 1 5 2 . . 1 1 . . 1 3 3 . . 1 4 . . . 1 . . 2 1 . . 2 . . 1 Melee Attacks . | . . . . . . . . . . . . . . . . . . . . . . . . . . . . . . . . . . . . Impact . | . . . . . . . . . . . . . . . . . . . . . . . . . . . . . . . . . . . . Slashing . | . . . . . . . . . . . . . . . . . . . . . . . . . . . . . . . . . . . . Piercing . | . . . . . . . . . . . . . . . . . . . . . . . . . . . . . . . . . . . . Sneak Attacks . | . . . . . . . . . . . . . . . . . . . . . . . . . . . . . . . . . . . . Combat Hostiles . | . . . . . . . . . . . . . . . . . . . . . . . . . . . . . . . . . . . . Follow-up Attacks . | . . . . . . . . . . . . . . . . . . . . . . . . . . . . . . . . . . . . Damage Inflicted 69876 | 196 1108 2951 2022 2219 3131 1515 2773 1378 2414 425 1455 3702 802 601 2065 1757 3295 1366 3471 3446 4030 112 335 2409 1448 113 108 3611 1831 748 2943 4777 . 1575 3744 Guns 6732 | 119 928 1799 . . . . . 46 1397 121 586 672 529 197 338 . . . . . . . . . . . . . . . . . . . . Cannons 54204 | . . 358 2000 1683 2931 366 2520 1332 791 104 869 1500 273 404 1727 1561 3235 1113 2864 3446 4030 112 335 2409 1448 113 . 3345 1512 748 2160 4777 . 1575 2563 Explosions 8885 | 77 180 790 . 536 191 1149 253 . 213 200 . 1530 . . . 196 53 253 607 . . . . . . . 108 266 319 . 783 . . . 1181 Melee . | . . . . . . . . . . . . . . . . . . . . . . . . . . . . . . . . . . . . Ramming 55 | . . 4 22 . 9 . . . 13 . . . . . . . 7 . . . . . . . . . . . . . . . . . . Kinetic 20458 | . . . . . . . . . . . . . . . 262 614 1121 352 1888 2210 2584 43 175 1336 891 44 . 1586 1002 522 777 2458 . 923 1670 Thermal 38771 | 77 180 1148 2000 1683 2931 366 2537 1378 2188 225 1455 2247 802 601 1803 947 2114 761 976 1236 1446 69 160 1073 557 69 . 1759 510 226 1383 2319 . 652 893 Explosive 6507 | . . . . 479 191 1149 . . . . . 1369 . . . 22 53 253 442 . . . . . . . . 266 319 . 783 . . . 1181 Electromagnetic 4085 | 119 928 1799 . 57 . . 236 . 213 200 . 86 . . . 174 . . 165 . . . . . . . 108 . . . . . . . . Impact . | . . . . . . . . . . . . . . . . . . . . . . . . . . . . . . . . . . . . Slashing . | . . . . . . . . . . . . . . . . . . . . . . . . . . . . . . . . . . . . Piercing . | . . . . . . . . . . . . . . . . . . . . . . . . . . . . . . . . . . . . Highest Corruption 23 | . . . . . . . 1 1 1 1 1 2 17 19 20 23 . . 2 2 1 1 1 1 1 1 2 3 3 5 5 10 . . 6 Average Corruption 5 | . . . . . . . 1 1 1 1 1 2 10 17 19 21 . . 1 2 1 1 1 1 1 1 1 2 3 3 3 5 . . 4 Corruption Purged 16 | . . . . . . . . . . . . . . . . . . . . . . . . . . . . . . . 5 9 . . 2 Effects 283 | . . . . . . . 5 1 3 4 4 10 11 22 62 60 . . 9 13 2 . 1 6 2 . . 3 7 8 13 28 . . 9 Message Errors 45 | . . . . . . . 3 1 1 1 1 3 . 4 9 5 . . 2 3 . . . 1 . . . . 3 3 1 3 . . 1 Matter Fused 30 | . . . . . . . . . . . . . 3 3 7 7 . . . . . . . . . . . 2 . 3 . 4 . . 1 Heat Flow Errors 15 | . . . . . . . . . . . . . . . 3 4 . . 2 4 . . . . . . . . . . . 2 . . . Energy Discharges 17 | . . . . . . . 1 . . 1 1 2 . 1 3 . . . . 1 1 . . 1 1 . . . . . 3 1 . . . Parts Rejected 2 | . . . . . . . . . . . . . . 1 . 1 . . . . . . . . . . . . . . . . . . . Data Loss (minor) 31 | . . . . . . . 1 . 1 1 1 4 . 4 4 2 . . . . 1 . . 1 . . . 1 1 2 3 4 . . . Data Loss (major) 8 | . . . . . . . . . . . . . 2 . 2 2 . . . . . . . . . . . . . . 1 1 . . . Misfires 10 | . . . . . . . . . . . . . . 1 . 4 . . . . . . . . . . . . . . 2 2 . . 1 Alerts 2 | . . . . . . . . . . . . . . . 1 1 . . . . . . . . . . . . . . . . . . . Misdirections 35 | . . . . . . . . . . . . . 2 1 11 19 . . . . . . . . . . . . . . . 2 . . . Targeting Errors 75 | . . . . . . . . . 1 1 1 1 2 7 20 13 . . 3 4 . . 1 2 1 . . . 3 . 3 6 . . 6 Weapon Failures 13 | . . . . . . . . . . . . . 2 . 2 2 . . 2 1 . . . 1 . . . . . . . 3 . . . Overload Shots 49 | . . . . . . . . . 2 . 4 14 19 2 8 . . . . . . . . . . . . . . . . . . . . Effects 6 | . . . . . . . . . . . . 1 1 . 4 . . . . . . . . . . . . . . . . . . . . Energy Bleed 1 | . . . . . . . . . . . . . 1 . . . . . . . . . . . . . . . . . . . . . . Heat Surge 1 | . . . . . . . . . . . . 1 . . . . . . . . . . . . . . . . . . . . . . . Short Circuit 1 | . . . . . . . . . . . . . . . 1 . . . . . . . . . . . . . . . . . . . . Meltdown 3 | . . . . . . . . . . . . . . . 3 . . . . . . . . . . . . . . . . . . . . Overflow Damage 2194 | . . 102 38 14 81 24 119 34 48 2 11 165 . 4 96 81 114 102 92 123 198 . 15 67 . . . 67 46 6 97 192 . 15 241 Projectiles 1822 | . . . 38 14 81 . 119 34 34 . 11 43 . 4 96 81 114 82 92 123 198 . 15 67 . . . 49 32 6 97 192 . 15 185 Explosions 372 | . . 102 . . . 24 . . 14 2 . 122 . . . . . 20 . . . . . . . . . 18 14 . . . . . 56 Melee . | . . . . . . . . . . . . . . . . . . . . . . . . . . . . . . . . . . . . Knockbacks 136 | . . . . . . . . . . . . . . . 1 6 3 6 11 24 22 . . 3 5 . . 9 9 3 2 13 . 2 17 Impact . | . . . . . . . . . . . . . . . . . . . . . . . . . . . . . . . . . . . . Kinetic 126 | . . . . . . . . . . . . . . . 1 5 3 5 10 22 21 . . 3 5 . . 9 8 3 2 13 . 1 15 Secondary 10 | . . . . . . . . . . . . . . . . 1 . 1 1 2 1 . . . . . . . 1 . . . . 1 2 Self-Inflicted Damage 520 | . . 190 11 40 . . . . . . . 42 . . . . 3 . 63 . . . . . . . 88 . . . . . . 83 . Shots 10 | . . 4 . 1 . . . . . . . 1 . . . . . . 2 . . . . . . . 1 . . . . . . 1 . Rammed 4 | . . 1 2 . . . . . . . . . . . . . 1 . . . . . . . . . . . . . . . . . . Targets Rammed 7 | . . 1 2 . 1 . . . 2 . . . . . . . 1 . . . . . . . . . . . . . . . . . . Kicked 3 | . . . . . 1 . . . 2 . . . . . . . . . . . . . . . . . . . . . . . . . . Crushed . | . . . . . . . . . . . . . . . . . . . . . . . . . . . . . . . . . . . . Highest Temperature 525 | 112 42 246 126 78 66 72 150 96 96 . 401 421 173 132 274 419 525 403 161 428 164 124 124 287 380 68 68 478 162 168 461 340 . 328 172 Average Temperature 71 | 59 12 51 15 16 20 28 27 18 13 . 88 134 73 59 94 126 111 102 49 127 41 74 62 107 153 51 51 155 56 68 162 103 . 107 60 Received Heat Transfer 3254 | . 141 291 99 84 279 54 126 66 282 96 96 135 . 33 323 69 117 36 27 140 198 . . 27 60 9 . 90 14 39 193 45 . 4 81 Effects 18 | . . 1 . . . . . . . . 3 1 . . 2 2 3 . . 2 . . . . 1 . . . . . 2 1 . . . Shutdowns 5 | . . . . . . . . . . . 1 . . . . . 1 . . . . . . . 1 . . . . . 1 1 . . . Energy Bleed 4 | . . . . . . . . . . . 1 . . . 1 . 1 . . . . . . . . . . . . . 1 . . . . Interference 4 | . . 1 . . . . . . . . . . . . 1 . . . . 2 . . . . . . . . . . . . . . . Matter Decay 2 | . . . . . . . . . . . . 1 . . . . 1 . . . . . . . . . . . . . . . . . . Short Circuit 2 | . . . . . . . . . . . 1 . . . . 1 . . . . . . . . . . . . . . . . . . . Damage (minor) 1 | . . . . . . . . . . . . . . . . 1 . . . . . . . . . . . . . . . . . . . Siege Activations . | . . . . . . . . . . . . . . . . . . . . . . . . . . . . . . . . . . . . Robots Corrupted 2 | . 1 1 . . . . . . . . . . . . . . . . . . . . . . . . . . . . . . . . . Combat Hostiles 1 | . 1 . . . . . . . . . . . . . . . . . . . . . . . . . . . . . . . . . . Parts Fried 15 | 1 4 8 . . . . 2 . . . . . . . . . . . . . . . . . . . . . . . . . . . . Impact Corruptions 2 | . . . . . . . . . . . . . . . . . . . . . . . . . . . . . 2 . . . . . . Robots Melted 3 | . . . . . . . 1 . 1 . 1 . . . . . . . . . . . . . . . . . . . . . . . . Combat Hostiles 3 | . . . . . . . 1 . 1 . 1 . . . . . . . . . . . . . . . . . . . . . . . . Parts Melted 82 | 1 . 2 7 3 6 1 9 4 9 . 4 4 . 2 6 1 7 2 2 . 1 . . . 1 . . 1 1 . 1 6 . . 1 Heat Transferred 43523 | 100 250 1568 3016 2401 4514 479 3380 1665 3262 296 1637 2324 859 655 1767 851 1961 737 999 1147 1517 74 148 1147 592 74 . 1554 444 185 1239 1702 . 406 573 Parts Sabotaged 2 | . . . . . . . . . . . . . . . . . . . . . . . . . . . . . . . . . . . 2 Parts Stolen . | . . . . . . . . . . . . . . . . . . . . . . . . . . . . . . . . . . . . Parts Stripped . | . . . . . . . . . . . . . . . . . . . . . . . . . . . . . . . . . . . . Power Chain Reactions 17 | 2 3 11 . . . . 1 . . . . . . . . . . . . . . . . . . . . . . . . . . . . Missiles Intercepted . | . . . . . . . . . . . . . . . . . . . . . . . . . . . . . . . . . . . . Alert | -11 -10 -9 -9 -9 -8 -8 -8 -7 -7 -7 -7 -6 -6 -6 -6 -6 -5 -5 -5 -5 -4 -4 -4 -4 -4 -4 -4 -3 -3 -3 -3 -2 -1 -1 -1 ------- Run | Scr Mat Mat Sto Gar Mat Gar Mat Fac Gar Fac Gar Fac Was Fac Gar Fac Fac Gar Fac Gar Fac Was Fac Ext Cet Arc Hub Res Gar Res Gar Res Acc Gar Acc Peak Influence 1763 | 20 258 1019 628 1359 877 789 803 326 587 507 647 1234 418 479 1003 976 507 661 802 1288 1137 390 416 993 838 458 363 533 872 589 786 973 550 857 1763 Average Influence 510 | 5 112 553 329 783 589 508 362 144 374 229 520 847 405 340 729 534 241 541 518 998 863 390 329 587 701 430 170 379 659 486 515 635 549 611 1555 Maximum Alert Level 5 | . 1 3 2 4 3 3 3 1 2 2 2 4 2 2 3 3 2 2 3 4 4 1 2 3 3 2 1 2 3 2 3 3 2 3 5 Low Security (%) 17 | 100 81 10 42 . . . 27 75 23 46 . . . . . . 35 . 13 . . . 10 11 . . 94 6 . . . . . . . Level 1 21 | . 18 25 12 13 3 36 26 24 29 38 7 2 . 81 10 38 56 7 23 . . 100 78 25 . 22 5 42 7 17 41 . . . . Level 2 36 | . . 27 44 27 70 40 38 . 47 14 92 23 100 18 27 37 7 92 50 10 13 . 11 18 64 77 . 51 42 82 46 66 100 60 1 Level 3 20 | . . 36 . 37 26 23 7 . . . . 56 . . 62 23 . . 12 46 74 . . 44 35 . . . 50 . 12 33 . 39 . Level 4 3 | . . . . 22 . . . . . . . 17 . . . . . . . 43 11 . . . . . . . . . . . . . . Level 5 . | . . . . . . . . . . . . . . . . . . . . . . . . . . . . . . . . . . . . High Security . | . . . . . . . . . . . . . . . . . . . . . . . . . . . . . . . . . . . . Max Security 1 | . . . . . . . . . . . . . . . . . . . . . . . . . . . . . . . . . . . 98 Squads Dispatched 108 | . 2 6 8 . 1 . 3 6 . 8 . 15 . 2 . 7 7 . 4 . 8 . . 2 . . . 6 . 2 . 9 . . 12 Investigation 26 | . 2 3 . . . . 1 2 . 4 . 5 . . . 3 1 . 2 . 1 . . 1 . . . . . . . 1 . . . Extermination 16 | . . . . . . . . 3 . 1 . 2 . . . 1 2 . 1 . 1 . . . . . . 1 . 1 . 3 . . . Reinforcement 26 | . . 3 2 . 1 . 2 . . 3 . 4 . 1 . 1 1 . 1 . 2 . . 1 . . . 2 . . . 2 . . . Assault 24 | . . . 3 . . . . . . . . 2 . . . 2 . . . . 3 . . . . . . . . . . 2 . . 12 Garrison 16 | . . . 3 . . . . 1 . . . 2 . 1 . . 3 . . . 1 . . . . . . 3 . 1 . 1 . . . Intercept . | . . . . . . . . . . . . . . . . . . . . . . . . . . . . . . . . . . . . Construction Impeded 6 | . . . . . . . . . . . . 1 . . . . 1 . 1 . 2 . . . . . . 1 . . . . . . . Haulers Reinforced 3 | . . . . . . . . . . . . 1 . . . 1 . . . . . . . . . . . 1 . . . . . . . Alert ID Control Effect 106 | . . . . . . . . . 5 14 15 15 . . . . 2 10 . 2 5 . . 2 . . . 1 1 1 5 17 . 5 6 Stealth | -11 -10 -9 -9 -9 -8 -8 -8 -7 -7 -7 -7 -6 -6 -6 -6 -6 -5 -5 -5 -5 -4 -4 -4 -4 -4 -4 -4 -3 -3 -3 -3 -2 -1 -1 -1 --------- Run | Scr Mat Mat Sto Gar Mat Gar Mat Fac Gar Fac Gar Fac Was Fac Gar Fac Fac Gar Fac Gar Fac Was Fac Ext Cet Arc Hub Res Gar Res Gar Res Acc Gar Acc Distress Signals 34 | . . 4 3 . 2 . 2 1 . . 1 2 . . . . . . 3 . 4 . . 1 1 . . 2 . 1 . 5 . . 2 Communications Jammed . | . . . . . . . . . . . . . . . . . . . . . . . . . . . . . . . . . . . . Distress Signals . | . . . . . . . . . . . . . . . . . . . . . . . . . . . . . . . . . . . . Times Spotted 857 | . 20 57 44 36 36 15 42 13 26 20 27 55 6 5 21 15 25 27 32 31 42 1 2 25 11 4 . 25 22 11 31 63 . 17 50 Peak Tracking Total 24 | . 5 6 8 6 6 8 5 3 5 3 6 6 6 1 5 6 4 8 6 6 12 1 1 8 6 2 . 5 14 8 8 9 . 8 24 Tactical Retreats 54 | . 1 5 1 5 5 2 12 . 1 1 . 1 1 . . 1 . 1 2 2 . . . . . . . . 2 . 1 4 . 1 5 Traps | -11 -10 -9 -9 -9 -8 -8 -8 -7 -7 -7 -7 -6 -6 -6 -6 -6 -5 -5 -5 -5 -4 -4 -4 -4 -4 -4 -4 -3 -3 -3 -3 -2 -1 -1 -1 ------- Run | Scr Mat Mat Sto Gar Mat Gar Mat Fac Gar Fac Gar Fac Was Fac Gar Fac Fac Gar Fac Gar Fac Was Fac Ext Cet Arc Hub Res Gar Res Gar Res Acc Gar Acc Traps Triggered 40 | . 1 . 1 5 . . . 1 1 . . 1 . . 5 . 2 1 7 4 1 . 1 . . . . . 2 . 1 2 . 2 2 Indirectly 2 | . . . . . . . . . . . . . . . . . . . 2 . . . . . . . . . . . . . . . . Trap Hack Attempts . | . . . . . . . . . . . . . . . . . . . . . . . . . . . . . . . . . . . . Triggered . | . . . . . . . . . . . . . . . . . . . . . . . . . . . . . . . . . . . . Disarmed 12 | . . . . . . . . . . . . 6 . . . 6 . . . . . . . . . . . . . . . . . . . Reprogrammed 2 | . . . . . . . 2 . . . . . . . . . . . . . . . . . . . . . . . . . . . . Reused . | . . . . . . . . . . . . . . . . . . . . . . . . . . . . . . . . . . . . Traps Extracted . | . . . . . . . . . . . . . . . . . . . . . . . . . . . . . . . . . . . . Installed . | . . . . . . . . . . . . . . . . . . . . . . . . . . . . . . . . . . . . Triggered . | . . . . . . . . . . . . . . . . . . . . . . . . . . . . . . . . . . . . Machines | -11 -10 -9 -9 -9 -8 -8 -8 -7 -7 -7 -7 -6 -6 -6 -6 -6 -5 -5 -5 -5 -4 -4 -4 -4 -4 -4 -4 -3 -3 -3 -3 -2 -1 -1 -1 ---------- Run | Scr Mat Mat Sto Gar Mat Gar Mat Fac Gar Fac Gar Fac Was Fac Gar Fac Fac Gar Fac Gar Fac Was Fac Ext Cet Arc Hub Res Gar Res Gar Res Acc Gar Acc Machines Disabled 124 | . 2 5 3 3 3 1 1 3 5 . 4 24 . 1 5 8 5 5 13 5 6 . . 2 . . 3 . 3 . 3 5 . 5 1 Max in Single Turn 6 | . 1 1 1 1 1 1 1 1 1 . 1 6 . 1 2 4 1 1 4 1 2 . . 1 . . 3 . 2 . 1 1 . 2 1 Garrison Access 6 | . . . . . . . . 1 . . . 1 . . . 1 . . . . 1 . . . . . . . . . . 2 . . . Garrison Relay 32 | . . . . 3 . 1 . . 5 . 5 . . . 3 . . 3 . 4 . . . . . . . . 2 . 3 . . 3 . Phase Generator 2 | . . . . . . . . . . . . . . . 1 . . . . . . . . . . . . . . . . . . 1 . Network Hub 1 | . . . . . . . . . . . . . . . . . . . . . . . . . . . 1 . . . . . . . . Energy Cycler 1 | . . . . . . . . . . . . . . . . . . . . . . . . 1 . . . . . . . . . . . Machines Sabotaged . | . . . . . . . . . . . . . . . . . . . . . . . . . . . . . . . . . . . . Garrisons Compromised . | . . . . . . . . . . . . . . . . . . . . . . . . . . . . . . . . . . . . Overloaded Fab Kills . | . . . . . . . . . . . . . . . . . . . . . . . . . . . . . . . . . . . . Fab Network Shutdowns 2 | . . . . . . . . . . 1 . 1 . . . . . . . . . . . . . . . . . . . . . . . Hacking | -11 -10 -9 -9 -9 -8 -8 -8 -7 -7 -7 -7 -6 -6 -6 -6 -6 -5 -5 -5 -5 -4 -4 -4 -4 -4 -4 -4 -3 -3 -3 -3 -2 -1 -1 -1 --------- Run | Scr Mat Mat Sto Gar Mat Gar Mat Fac Gar Fac Gar Fac Was Fac Gar Fac Fac Gar Fac Gar Fac Was Fac Ext Cet Arc Hub Res Gar Res Gar Res Acc Gar Acc Machines Accessed 156 | . 8 7 12 . 13 . 10 13 . 13 . 13 . 3 . 14 16 . 11 . 5 . 2 4 1 . . 5 . 2 . 3 1 . . Terminals 105 | . 7 5 11 . 10 . 9 9 . 9 . 9 . 1 . 9 10 . 5 . 1 . 2 4 1 . . 2 . . . 1 . . . Fabricators 17 | . . . . . . . . 1 . 2 . 2 . . . 2 2 . 3 . 3 . . . . . . 1 . . . 1 . . . Repair Stations 2 | . . . . . 1 . . . . . . . . 1 . . . . . . . . . . . . . . . . . . . . . Recycling Units 2 | . 1 . . . . . . . . . . . . . . . 1 . . . . . . . . . . . . . . . . . . Scanalyzers 11 | . . 2 . . 1 . 1 1 . 1 . . . . . 1 1 . 1 . . . . . . . . 1 . 1 . . . . . Garrison Access 19 | . . . 1 . 1 . . 2 . 1 . 2 . 1 . 2 2 . 2 . 1 . . . . . . 1 . 1 . 1 1 . . Total Hacks 584 | . 26 38 38 . 50 . 48 38 . 52 . 53 . 9 . 56 57 . 42 . 18 . 10 12 2 . . 18 . 4 . 10 3 . . Successful 342 | . 10 32 25 . 31 . 24 24 . 30 . 27 . 6 . 31 38 . 24 . 12 . 5 10 1 . . 5 . 2 . 4 1 . . Failed 241 | . 16 6 13 . 19 . 24 14 . 21 . 26 . 3 . 25 19 . 18 . 6 . 5 2 1 . . 13 . 2 . 6 2 . . Catastrophic 40 | . 1 2 3 . 1 . 5 1 . 1 . 6 . 1 . 6 2 . 4 . . . . . . . . 4 . 1 . 2 . . . Database Lockouts 1 | . . . . . . . . . . 1 . . . . . . . . . . . . . . . . . . . . . . . . . Manual 264 | . 19 20 25 . 18 . 28 14 . 26 . 17 . 4 . 34 29 . 7 . 9 . 3 7 . . . . . . . 2 2 . . Terminals 413 | . 23 24 37 . 35 . 40 29 . 40 . 39 . 3 . 40 39 . 22 . 4 . 10 12 2 . . 10 . . . 4 . . . Fabricators 51 | . . . . . . . . 3 . 8 . 6 . . . 5 7 . 7 . 8 . . . . . . 3 . . . 4 . . . Repair Stations 5 | . . . . . 2 . . . . . . . . 3 . . . . . . . . . . . . . . . . . . . . . Recycling Units 5 | . 3 . . . . . . . . . . . . . . . 2 . . . . . . . . . . . . . . . . . . Scanalyzers 61 | . . 14 . . 10 . 8 2 . 2 . . . . . 6 2 . 10 . . . . . . . . 4 . 3 . . . . . Garrison Access 49 | . . . 1 . 3 . . 4 . 2 . 8 . 3 . 5 7 . 3 . 6 . . . . . . 1 . 1 . 2 3 . . Terminal Hacks 159 | . 5 13 16 . 12 . 13 13 . 14 . 15 . 1 . 11 17 . 10 . 3 . 5 7 1 . . 2 . . . 1 . . . Part Schematic 14 | . . . 3 . 1 . 2 3 . . . 1 . . . . 3 . 1 . . . . . . . . . . . . . . . . Robot Schematic 4 | . . 1 . . . . . . . 2 . . . . . . 1 . . . . . . . . . . . . . . . . . . Robot Analysis 7 | . 1 2 . . . . . . . 1 . . . . . . 1 . 1 . 1 . . . . . . . . . . . . . . Prototype ID Bank 17 | . 2 1 . . 2 . 2 1 . . . 1 . . . 2 1 . 2 . 1 . 1 1 . . . . . . . . . . . Open Door 5 | . . . 2 . . . . . . . . . . . . . . . . . . . 1 1 1 . . . . . . . . . . Level Access Points 5 | . . . . . . . . . . 1 . 1 . . . 1 1 . . . . . . . . . . . . . . 1 . . . Branch Access Points 8 | . . 1 . . . . 1 . . 1 . . . . . 1 1 . 1 . . . 1 1 . . . . . . . . . . . Emergency Access Points 1 | . . . . . . . . . . 1 . . . . . . . . . . . . . . . . . . . . . . . . . Machine Index 4 | . . . . . . . . . . 1 . . . . . 1 1 . . . 1 . . . . . . . . . . . . . . Terminal Index 11 | . 1 1 1 . 1 . 1 1 . 1 . 1 . . . . 1 . 1 . . . . 1 . . . . . . . . . . . Fabricator Index 1 | . . . . . . . . . . . . 1 . . . . . . . . . . . . . . . . . . . . . . . Recycling Unit Index 1 | . . . . . . . . 1 . . . . . . . . . . . . . . . . . . . . . . . . . . . Garrison Index 5 | . . . 1 . . . . 1 . 1 . 1 . . . . . . 1 . . . . . . . . . . . . . . . . Alert Level 3 | . . 1 2 . . . . . . . . . . . . . . . . . . . . . . . . . . . . . . . . Unreport Threat 31 | . . 4 1 . 4 . 4 1 . 1 . 4 . . . 4 3 . 2 . . . 2 1 . . . . . . . . . . . Locate Traps 13 | . . 1 1 . 3 . 2 1 . 1 . 1 . . . . 2 . 1 . . . . . . . . . . . . . . . . Disarm Traps 2 | . . . . . . . . . . . . 1 . . . 1 . . . . . . . . . . . . . . . . . . . Reprogram Traps 1 | . . . . . . . 1 . . . . . . . . . . . . . . . . . . . . . . . . . . . . Dispatch Records 2 | . . . . . . . . 1 . . . . . . . . . . . . . . . . . . . 1 . . . . . . . Security Status 4 | . . 1 2 . . . . . . . . . . . . . . . . . . . . . . . . 1 . . . . . . . Surveillance Status 1 | . . . . . . . . . . 1 . . . . . . . . . . . . . . . . . . . . . . . . . Patrol Status 2 | . . . . . . . . . . 1 . . . . . 1 . . . . . . . . . . . . . . . . . . . Investigation Status 1 | . . . . . . . . . . . . . . 1 . . . . . . . . . . . . . . . . . . . . . Recall Investigation 3 | . 1 . . . . . . 1 . 1 . . . . . . . . . . . . . . . . . . . . . . . . . Recall Extermination 2 | . . . . . . . . 1 . . . 1 . . . . . . . . . . . . . . . . . . . . . . . Recall Reinforcements 2 | . . . 1 . . . . . . . . . . . . . . . . . . . . 1 . . . . . . . . . . . Recall Assault 1 | . . . . . . . . . . . . 1 . . . . . . . . . . . . . . . . . . . . . . . Hauler Manifests 1 | . . . . . 1 . . . . . . . . . . . . . . . . . . . . . . . . . . . . . . Registered Components 3 | . . . . . . . . 1 . . . 1 . . . . 1 . . . . . . . . . . . . . . . . . . Zone Layout 4 | . . . 2 . . . . . . . . . . . . . 1 . . . . . . 1 . . . . . . . . . . . Fabricator Hacks 29 | . . . . . . . . . . 6 . 4 . . . 3 5 . 3 . 4 . . . . . . 2 . . . 2 . . . Network Status 4 | . . . . . . . . . . 1 . 1 . . . . 1 . . . 1 . . . . . . . . . . . . . . Load Schematic 12 | . . . . . . . . . . 2 . 1 . . . 1 2 . 2 . 1 . . . . . . 1 . . . 2 . . . Build 13 | . . . . . . . . . . 3 . 2 . . . 2 2 . 1 . 2 . . . . . . 1 . . . . . . . Repair Station Hacks 4 | . . . . . 2 . . . . . . . . 2 . . . . . . . . . . . . . . . . . . . . . Scan Component 2 | . . . . . 1 . . . . . . . . 1 . . . . . . . . . . . . . . . . . . . . . Repair 2 | . . . . . 1 . . . . . . . . 1 . . . . . . . . . . . . . . . . . . . . . Recycling Unit Hacks 1 | . 1 . . . . . . . . . . . . . . . . . . . . . . . . . . . . . . . . . . Retrieve Matter 1 | . 1 . . . . . . . . . . . . . . . . . . . . . . . . . . . . . . . . . . Scanalyzer 45 | . . 13 . . 10 . 8 2 . . . . . . . 4 1 . 6 . . . . . . . . . . 1 . . . . . Insert Component 23 | . . 6 . . 5 . 4 1 . . . . . . . 2 1 . 3 . . . . . . . . . . 1 . . . . . Analyze 22 | . . 7 . . 5 . 4 1 . . . . . . . 2 . . 3 . . . . . . . . . . . . . . . . Garrison Access Hacks 23 | . . . 1 . 2 . . 4 . 2 . 2 . 1 . 3 2 . 2 . 1 . . . . . . 1 . 1 . . 1 . . Unlock Access 10 | . . . 1 . 1 . . 1 . 1 . . . 1 . . 1 . 1 . . . . . . . . 1 . 1 . . 1 . . Seal Access 2 | . . . . . . . . 1 . . . . . . . 1 . . . . . . . . . . . . . . . . . . . Coupler Status 11 | . . . . . 1 . . 2 . 1 . 2 . . . 2 1 . 1 . 1 . . . . . . . . . . . . . . Unauthorized Hacks 203 | . 11 13 17 . 12 . 12 15 . 16 . 16 . 5 . 27 29 . 6 . 13 . . 6 . . . . . . . 3 2 . . Terminals 57 | . 4 5 8 . 5 . 3 4 . 6 . 2 . 1 . 8 7 . 1 . . . . 3 . . . . . . . . . . . Track 12 | . . . 2 . 1 . . 1 . 1 . . . . . 3 3 . . . . . . 1 . . . . . . . . . . . Assimilate 5 | . . 1 1 . . . . . . 1 . . . . . 2 . . . . . . . . . . . . . . . . . . . Botnet 33 | . 3 3 3 . 3 . 3 3 . 3 . 2 . 1 . 3 3 . 1 . . . . 2 . . . . . . . . . . . Disrupt 1 | . . . 1 . . . . . . . . . . . . . . . . . . . . . . . . . . . . . . . . Operators 6 | . 1 1 1 . 1 . . . . 1 . . . . . . 1 . . . . . . . . . . . . . . . . . . Fabricators 8 | . . . . . . . . 1 . 2 . 1 . . . 1 1 . . . 2 . . . . . . . . . . . . . . Report 3 | . . . . . . . . 1 . . . . . . . . 1 . . . 1 . . . . . . . . . . . . . . Siphon 5 | . . . . . . . . . . 2 . 1 . . . 1 . . . . 1 . . . . . . . . . . . . . . Repair Stations . | . . . . . . . . . . . . . . . . . . . . . . . . . . . . . . . . . . . . Recycling Units 2 | . . . . . . . . . . . . . . . . . 2 . . . . . . . . . . . . . . . . . . Reject 1 | . . . . . . . . . . . . . . . . . 1 . . . . . . . . . . . . . . . . . . Recyclers 1 | . . . . . . . . . . . . . . . . . 1 . . . . . . . . . . . . . . . . . . Scanalyzers 2 | . . 1 . . . . . . . . . . . . . . . . 1 . . . . . . . . . . . . . . . . Extract 2 | . . 1 . . . . . . . . . . . . . . . . 1 . . . . . . . . . . . . . . . . Garrison Access 12 | . . . . . . . . . . . . 3 . 1 . 1 3 . 1 . 2 . . . . . . . . . . 1 . . . Reprogram 10 | . . . . . . . . . . . . 3 . 1 . 1 2 . 1 . 1 . . . . . . . . . . 1 . . . Eject 2 | . . . . . . . . . . . . . . . . . 1 . . . 1 . . . . . . . . . . . . . . Data Cores Recovered 3 | . . . 1 . . . . 1 . . . . . . . . . . . . . . 1 . . . . . . . . . . . . Used 2 | . . . . . . . . 1 . . . . . . . . . . . . . . 1 . . . . . . . . . . . . Hacking Detections 131 | . 8 6 9 . 12 . 8 12 . 12 . 11 . 3 . 10 14 . 10 . 4 . 2 2 . . . 4 . 1 . 2 1 . . Full Trace Events 19 | . 2 1 1 . 1 . 1 2 . 3 . 4 . . . 3 . . 1 . . . . . . . . . . . . . . . . Feedback Events 2 | . . . . . . . 1 . . . . . . . . 1 . . . . . . . . . . . . . . . . . . . Corruption 2 | . . . . . . . 1 . . . . . . . . 1 . . . . . . . . . . . . . . . . . . . Feedback Blocked . | . . . . . . . . . . . . . . . . . . . . . . . . . . . . . . . . . . . . Robot Schematics Acquired 4 | . . 1 . . . . . . . 2 . . . . . . 1 . . . . . . . . . . . . . . . . . . Robots Built 10 | . . . . . . . . . . 3 . . . . . 3 . . 1 . 1 . . . . . . 2 . . . . . . . Matter 1332 | . . . . . . . . . . 381 . . . . . 366 . . 153 . 114 . . . . . . 318 . . . . . . . Time 622 | . . . . . . . . . . 202 . . . . . 215 . . 81 . 40 . . . . . . 84 . . . . . . . Total Robot Build Rating 26 | . . . . . . . . . . 3 . . . . . 9 . . 1 . 1 . . . . . . 12 . . . . . . . Part Schematics Acquired 36 | . . 7 3 . 5 . 6 4 . . . 1 . . . 2 3 . 5 . . . . . . . . . . . . . . . . Parts Built 7 | . . . . . . . . . . . . 2 . . . . 3 . . . 2 . . . . . . . . . . . . . . Matter 924 | . . . . . . . . . . . . 354 . . . . 336 . . . 234 . . . . . . . . . . . . . . Time 311 | . . . . . . . . . . . . 153 . . . . 119 . . . 39 . . . . . . . . . . . . . . Total Part Build Rating 36 | . . . . . . . . . . . . 11 . . . . 11 . . . 14 . . . . . . . . . . . . . . Parts Repaired 2 | . . . . . 1 . . . . . . . . 1 . . . . . . . . . . . . . . . . . . . . . Time 64 | . . . . . 26 . . . . . . . . 38 . . . . . . . . . . . . . . . . . . . . . Parts Recycled . | . . . . . . . . . . . . . . . . . . . . . . . . . . . . . . . . . . . . Recycled Matter . | . . . . . . . . . . . . . . . . . . . . . . . . . . . . . . . . . . . . Retrieved Matter . | . . . . . . . . . . . . . . . . . . . . . . . . . . . . . . . . . . . . Retrieved Components . | . . . . . . . . . . . . . . . . . . . . . . . . . . . . . . . . . . . . Parts Scanalyzed 22 | . . 6 . . 5 . 3 1 . . . . . . . 2 1 . 3 . . . . . . . . . . 1 . . . . . Part Schematics Acquired 20 | . . 6 . . 4 . 4 1 . . . . . . . 2 . . 3 . . . . . . . . . . . . . . . . Parts Damaged . | . . . . . . . . . . . . . . . . . . . . . . . . . . . . . . . . . . . . Bothacking | -11 -10 -9 -9 -9 -8 -8 -8 -7 -7 -7 -7 -6 -6 -6 -6 -6 -5 -5 -5 -5 -4 -4 -4 -4 -4 -4 -4 -3 -3 -3 -3 -2 -1 -1 -1 ------------ Run | Scr Mat Mat Sto Gar Mat Gar Mat Fac Gar Fac Gar Fac Was Fac Gar Fac Fac Gar Fac Gar Fac Was Fac Ext Cet Arc Hub Res Gar Res Gar Res Acc Gar Acc Used RIF Installer 10 | . . . . 1 . 1 . . 1 . 1 . . . 1 . . 1 . 1 . . . . . . . . 1 . 1 . . 1 . Coupler Efficiency 2 | . . . . . . . . . . . . . . . . . . . . . . . . . . . . . 1 . . . . 1 . Patrol Navigation 1 | . . . . . . . . . . . 1 . . . . . . . . . . . . . . . . . . . . . . . . Alert ID Control 1 | . . . . . . . . . 1 . . . . . . . . . . . . . . . . . . . . . . . . . . Structural Interface 1 | . . . . . . . . . . . . . . . 1 . . . . . . . . . . . . . . . . . . . . Program Shield 1 | . . . . . . 1 . . . . . . . . . . . . . . . . . . . . . . . . . . . . . Autooverride 2 | . . . . . . . . . . . . . . . . . . 1 . 1 . . . . . . . . . . . . . . . Crosswire 1 | . . . . . . . . . . . . . . . . . . . . . . . . . . . . . . . 1 . . . . Robots Hacked 151 | . . . . . . . . . 8 5 11 11 . . 5 3 3 6 . 3 14 . . 4 . 2 . 2 4 1 14 29 . 11 15 Non-combat 3 | . . . . . . . . . . . . . . . . 3 . . . . . . . . . . . . . . . . . . . Combat 148 | . . . . . . . . . 8 5 11 11 . . 5 . 3 6 . 3 14 . . 4 . 2 . 2 4 1 14 29 . 11 15 Autooverrided 46 | . . . . . . . . . . . . . . . . . . . . 1 7 . . 4 . 1 . 2 . 1 5 14 . 4 7 Robot Hacks Applied 115 | . . . . . . . . . 8 5 12 14 . . 5 4 3 6 . 2 8 . . . . 2 . . 4 . 9 16 . 9 8 parse_system 3 | . . . . . . . . . . . 1 . . . 1 . . . . . . . . . . . . . . . . . . . 1 map_walls 1 | . . . . . . . . . . . . . . . . 1 . . . . . . . . . . . . . . . . . . . map_route 1 | . . . . . . . . . . . . . . . . 1 . . . . . . . . . . . . . . . . . . . mark_security 1 | . . . . . . . . . . . . . . . . 1 . . . . . . . . . . . . . . . . . . . find_shortcuts 1 | . . . . . . . . . . . . 1 . . . . . . . . . . . . . . . . . . . . . . . link_fov 1 | . . . . . . . . . . . . . . . . . . . . . . . . . . . . . . . . . . 1 . disrupt_area 3 | . . . . . . . . . . . . 1 . . . . . . . . 2 . . . . . . . . . . . . . . spike_heat 1 | . . . . . . . . . . . . . . . . . . . . . . . . . . . . . . . . 1 . . . amplify_resonance 1 | . . . . . . . . . . . 1 . . . . . . . . . . . . . . . . . . . . . . . . disable_weapons 3 | . . . . . . . . . . . . 2 . . 1 . . . . . . . . . . . . . . . . . . . . reboot_system 3 | . . . . . . . . . . . . 2 . . . . . . . . 1 . . . . . . . . . . . . . . go_dormant 1 | . . . . . . . . . . . . 1 . . . . . . . . . . . . . . . . . . . . . . . overwrite_iff 27 | . . . . . . . . . . 1 2 3 . . . . . 1 . . 4 . . . . 1 . . 4 . 3 3 . 2 3 streamctrl_high 6 | . . . . . . . . . 3 . . 1 . . 1 . . . . . . . . . . . . . . . 1 . . . . formatsys_low 1 | . . . . . . . . . . . . . . . . 1 . . . . . . . . . . . . . . . . . . . formatsys_high 61 | . . . . . . . . . 5 4 8 3 . . 2 . 3 5 . 2 1 . . . . 1 . . . . 5 12 . 6 4 Relay Couplers Released 62 | . . . . 4 . 2 . . 10 . 10 2 . . 3 1 2 4 . 7 2 . . . . . . . 4 . 5 . . 6 . Ejected 4 | . . . . . . . . . . . . . . . . . 2 . . . 2 . . . . . . . . . . . . . . Machine Destruction 58 | . . . . 4 . 2 . . 10 . 10 2 . . 3 1 . 4 . 7 . . . . . . . . 4 . 5 . . 6 . Attached 26 | . . . . . . . 1 . 4 1 2 2 . . 2 . 2 2 . 1 2 . . . . 1 . . . 1 2 1 . 2 . Crosswired 5 | . . . . . . . . . . . . . . . . . . . . . . . . . . . . . . . 4 . . 1 . Robots Rewired 12 | . . . . . . . . . 6 . . . . . . . . . . . . . . 6 . . . . . . . . . . . Allies Hacked 3 | . . . . . . . . . . . . . . . . . 1 . . . . . . . . . . 2 . . . . . . . Hacks Repelled . | . . . . . . . . . . . . . . . . . . . . . . . . . . . . . . . . . . . . Allies | -11 -10 -9 -9 -9 -8 -8 -8 -7 -7 -7 -7 -6 -6 -6 -6 -6 -5 -5 -5 -5 -4 -4 -4 -4 -4 -4 -4 -3 -3 -3 -3 -2 -1 -1 -1 -------- Run | Scr Mat Mat Sto Gar Mat Gar Mat Fac Gar Fac Gar Fac Was Fac Gar Fac Fac Gar Fac Gar Fac Was Fac Ext Cet Arc Hub Res Gar Res Gar Res Acc Gar Acc Total Allies 203 | . . 1 2 . . . . . 14 8 10 12 . 1 3 8 8 6 1 3 14 20 . 13 . 2 . 4 4 1 14 29 . 11 14 Largest Group 20 | . . 1 2 . . . . . 10 15 11 11 1 1 3 7 8 6 1 1 4 20 20 17 17 9 7 5 3 1 3 7 5 8 7 Highest-Rated Group 767 | . . 10 62 . . . . . 184 260 211 246 10 32 96 190 201 223 11 30 176 767 767 683 678 390 293 214 136 64 141 401 301 419 390 Highest-Rated Ally 69 | . . 10 31 . . . . . 32 32 32 47 10 32 32 41 41 41 11 30 58 50 50 58 48 64 64 64 47 64 64 69 69 69 69 Total Orders 255 | . . 5 12 . . . . 31 11 16 31 51 3 . 2 15 22 14 20 3 3 . . . . . . 2 . . 4 3 . 7 . STAY 27 | . . 1 2 . . . . 1 2 1 4 5 . . . 1 2 3 . . . . . . . . . 1 . . 1 . . 3 . GOTO 91 | . . 2 6 . . . . 4 6 8 17 17 2 . 1 4 7 2 7 1 2 . . . . . . . . . 1 1 . 3 . ROAM 1 | . . . . . . . . . . . . . . . . . . . 1 . . . . . . . . . . . . . . . . FOLLOW 87 | . . 2 3 . . . . 10 3 6 4 17 1 . 1 7 13 6 6 2 . . . . . . . 1 . . 2 2 . 1 . AID 20 | . . . . . . . . . . 1 6 9 . . . 3 . . . . 1 . . . . . . . . . . . . . . EXPLORE 25 | . . . 1 . . . . 12 . . . 3 . . . . . 3 6 . . . . . . . . . . . . . . . . RETURN 4 | . . . . . . . . 4 . . . . . . . . . . . . . . . . . . . . . . . . . . . Ally Attacks 1090 | . . . 24 . . . . . 44 95 57 112 . 1 12 48 61 57 . 14 32 2 31 110 46 23 . 35 7 3 45 113 . 58 60 Total Damage 31299 | . . . 417 . . . . . 539 1563 1432 4152 . 22 314 1889 1569 1720 . 312 1265 . 664 2853 1178 906 . 1355 74 163 1187 3930 . 1925 1870 Kills 191 | . . . 9 . . . . . 6 17 19 25 . . 3 16 7 11 . 2 5 . 1 21 6 2 . 5 1 1 5 18 . 5 6 Allies Corrupted 4 | . . . . . . . . . . . . . . . . . . . . . 2 . . . . . . 1 . 1 . . . . . Allies Melted . | . . . . . . . . . . . . . . . . . . . . . . . . . . . . . . . . . . . . Intel | -11 -10 -9 -9 -9 -8 -8 -8 -7 -7 -7 -7 -6 -6 -6 -6 -6 -5 -5 -5 -5 -4 -4 -4 -4 -4 -4 -4 -3 -3 -3 -3 -2 -1 -1 -1 ------- Run | Scr Mat Mat Sto Gar Mat Gar Mat Fac Gar Fac Gar Fac Was Fac Gar Fac Fac Gar Fac Gar Fac Was Fac Ext Cet Arc Hub Res Gar Res Gar Res Acc Gar Acc Robot Analysis Total 7 | . 1 2 . . . . . . . 1 . . . . . . 1 . 1 . 1 . . . . . . . . . . . . . . Derelict Logs Recovered . | . . . . . . . . . . . . . . . . . . . . . . . . . . . . . . . . . . . . Drone Launches 21 | . . . 2 . . . . 6 . . . 2 . . . . 5 . 6 . . . . . . . . . . . . . . . . Drone Recoveries 4 | . . . . . . . . 4 . . . . . . . . . . . . . . . . . . . . . . . . . . . Exploration | -11 -10 -9 -9 -9 -8 -8 -8 -7 -7 -7 -7 -6 -6 -6 -6 -6 -5 -5 -5 -5 -4 -4 -4 -4 -4 -4 -4 -3 -3 -3 -3 -2 -1 -1 -1 ------------- Run | Scr Mat Mat Sto Gar Mat Gar Mat Fac Gar Fac Gar Fac Was Fac Gar Fac Fac Gar Fac Gar Fac Was Fac Ext Cet Arc Hub Res Gar Res Gar Res Acc Gar Acc Turns Passed 24862 | 152 784 1475 1234 871 1265 306 994 1378 1069 1164 853 1515 135 297 702 1019 1397 502 838 881 590 151 219 565 264 103 76 682 408 483 763 1034 16 413 264 Spaces Moved 15479 | 98 500 773 702 479 649 154 558 903 599 837 618 1125 97 223 428 789 1043 328 501 500 311 102 154 316 153 70 61 373 230 284 473 608 10 267 163 Core 7 | 7 . . . . . . . . . . . . . . . . . . . . . . . . . . . . . . . . . . . Treads . | . . . . . . . . . . . . . . . . . . . . . . . . . . . . . . . . . . . . Legs 8864 | 91 500 773 702 479 649 154 558 903 599 156 . . . . . . . . . . 36 102 154 316 153 70 61 373 230 284 473 608 10 267 163 Wheels 6608 | . . . . . . . . . . 681 618 1125 97 223 428 789 1043 328 501 500 275 . . . . . . . . . . . . . . Hover . | . . . . . . . . . . . . . . . . . . . . . . . . . . . . . . . . . . . . Flight . | . . . . . . . . . . . . . . . . . . . . . . . . . . . . . . . . . . . . Fastest Speed 50 | 50 120 120 120 120 120 120 120 120 120 100 100 100 100 100 110 110 110 110 110 110 110 120 120 120 120 120 120 117 117 117 117 110 110 110 110 Average Speed 114 | 115 120 125 120 120 131 136 124 121 121 104 100 100 100 100 110 110 110 110 110 110 112 120 120 120 120 120 120 118 117 117 117 114 110 110 110 Slowest Speed 180 | 120 120 150 120 120 150 150 150 153 122 122 110 110 100 110 110 110 110 110 110 110 180 120 120 120 120 120 120 120 117 117 117 117 110 110 110 Overloaded Moves . | . . . . . . . . . . . . . . . . . . . . . . . . . . . . . . . . . . . . Propulsion Burnouts . | . . . . . . . . . . . . . . . . . . . . . . . . . . . . . . . . . . . . Robots Hopped 1 | . . . . . . . . . . . . . . . . . . 1 . . . . . . . . . . . . . . . . . Cave-ins Triggered . | . . . . . . . . . . . . . . . . . . . . . . . . . . . . . . . . . . . . Exploration Rate (%) 51 | 5 76 78 95 66 77 43 85 38 91 24 91 45 77 7 75 26 35 85 43 92 11 84 7 58 75 75 11 16 59 9 75 35 1 74 8 Regions Visited 35 Branch Regions 5 Pre-discovered Areas . | . . . . . . . . . . . . . . . . . . . . . . . . . . . . . . . . . . . . Known Exits Taken 15 | . . 1 1 . 1 . . 1 . 1 . . . 1 . 1 1 . 1 . . . 1 1 . . . 1 . 1 . 1 1 . . Unknown Exits Taken 6 | 1 1 . . . . . 1 . . . . . . . . . . . . . . . . . 1 1 1 . . . . . . . . Scrap Searched . | . . . . . . . . . . . . . . . . . . . . . . . . . . . . . . . . . . . . Spaces Dug 95 | . . . 1 . 3 5 6 3 . 2 . 4 7 . . 3 9 . 15 2 3 . 1 3 . . . 10 5 3 . 7 1 . 2 Terrain Destroyed 1290 | 5 8 76 32 27 36 22 41 17 . 5 8 101 8 4 66 29 79 38 55 55 40 . 6 42 7 . 167 57 44 9 58 39 1 54 54 Melee . | . . . . . . . . . . . . . . . . . . . . . . . . . . . . . . . . . . . . Projectile 541 | . . 6 32 . 16 . 38 17 . 5 8 21 8 4 12 12 42 9 36 55 40 . 6 42 7 . 2 39 17 9 11 39 1 1 6 AOE 749 | 5 8 70 . 27 20 22 3 . . . . 80 . . 54 17 37 29 19 . . . . . . . 165 18 27 . 47 . . 53 48 Actions | -11 -10 -9 -9 -9 -8 -8 -8 -7 -7 -7 -7 -6 -6 -6 -6 -6 -5 -5 -5 -5 -4 -4 -4 -4 -4 -4 -4 -3 -3 -3 -3 -2 -1 -1 -1 --------- Run | Scr Mat Mat Sto Gar Mat Gar Mat Fac Gar Fac Gar Fac Was Fac Gar Fac Fac Gar Fac Gar Fac Was Fac Ext Cet Arc Hub Res Gar Res Gar Res Acc Gar Acc Total 20580 | 116 604 1090 953 672 915 212 746 1124 851 1110 773 1436 115 280 598 908 1211 424 702 759 474 128 180 456 215 86 62 555 330 420 638 852 14 361 210 Wait 2391 | 2 47 160 132 80 132 16 88 142 94 229 57 208 4 22 37 60 47 37 90 143 62 . 16 42 27 9 1 99 37 94 43 90 3 37 4 Move 15450 | 97 499 772 701 478 648 153 557 902 598 836 617 1125 96 223 427 788 1043 325 501 499 311 101 153 315 152 69 60 373 229 284 472 607 10 266 163 Hop 1 | . . . . . . . . . . . . . . . . . . 1 . . . . . . . . . . . . . . . . . Pick Up 71 | . . 3 2 4 1 1 2 3 5 . 5 2 . 2 7 5 4 3 3 3 2 2 . . 2 . . 2 . 1 3 . . 4 . Fast Attach 108 | 6 4 8 4 2 11 3 6 13 2 4 2 . . 2 2 3 5 . 2 . 6 1 3 . 2 . . 2 . 5 2 6 . 1 1 Attach 24 | . . 1 . . 2 . 5 . 1 1 . 1 2 . 1 1 1 1 1 1 . . . . . . . 1 . . 1 2 . . 1 Detach 19 | . 1 1 . . 2 . 4 . 1 3 . . . . 1 1 2 1 . 1 . . . . . . . . . . . 1 . . . Swap 206 | . . 8 3 8 6 7 3 14 11 4 5 18 . 4 11 6 5 10 8 6 12 2 3 1 1 2 . 8 6 2 14 12 . 3 3 Drop 131 | . 3 6 6 4 9 4 6 16 4 6 6 . . 1 5 6 6 2 6 1 6 2 1 . 4 . . 6 . 5 4 5 . 1 . Fire 1201 | 11 36 83 62 49 63 20 52 26 61 16 61 59 13 7 41 21 49 27 44 49 50 1 4 26 11 5 1 38 34 10 38 71 1 29 32 Melee . | . . . . . . . . . . . . . . . . . . . . . . . . . . . . . . . . . . . . Ram 1 | . . . . . . . . . . . . . . . . . 1 . . . . . . . . . . . . . . . . . . Kick 6 | . . 1 2 . 1 . . . 2 . . . . . . . . . . . . . . . . . . . . . . . . . . Crush . | . . . . . . . . . . . . . . . . . . . . . . . . . . . . . . . . . . . . Escape Stasis 122 | . . . 5 10 . . . . 1 . . . . . 30 . 16 8 16 24 . . . . . . . . 4 . 3 . . 5 . Rewire 91 | . . . . . . . . . 34 1 . . . . . 1 1 1 . . . . . 42 . 1 . . . . 2 2 . 2 4 Trap . | . . . . . . . . . . . . . . . . . . . . . . . . . . . . . . . . . . . . Miscellaneous 758 | . 14 47 36 37 40 8 23 8 37 10 20 23 . 19 36 16 31 8 31 32 25 19 . 30 16 . . 26 20 19 56 56 . 13 2 Route ------- -11/Scrapyard -10/Materials (discovered 4 exits: *Mat x3 / [*Min]) -9/Materials (discovered 5 exits: *Mat x2 / *Min / *Sto x2) -9/Storage (discovered 2 exits: *Mat / Gar) -9/Garrison (discovered 3 exits: *Mat x3) -8/Materials (discovered 3 exits: *Fac x2 / Gar) -8/Garrison -8/Materials (discovered 3 exits: *Fac x3) -7/Factory (discovered 3 exits: *Fac / *Low / Gar) -7/Garrison (discovered 3 exits: *Fac x3) -7/Factory (discovered 7 exits: *Fac x4 / *Low x2 / Gar) -7/Garrison (discovered 3 exits: *Fac x3) -6/Factory (discovered 4 exits: *Fac x4) -6/Waste -6/Factory -6/Garrison (discovered 2 exits: *Fac x2) -6/Factory (discovered 6 exits: *Fac x4 / Low x2) -5/Factory (discovered 7 exits: *Fac x4 / Upp x2 / Gar) -5/Garrison (discovered 3 exits: *Fac x3) -5/Factory (discovered 5 exits: *Fac x2 / Upp x2 / Gar) -5/Garrison (discovered 3 exits: *Fac x3) -4/Factory -4/Waste -4/Factory (discovered 5 exits: *Upp x2 / *Ext x2 / Arm) -4/Extension (discovered 3 exits: *Res x2 / *Cet) -4/Cetus -4/Archives (discovered 3 exits: *Res / [*Hub x2]) -4/Hub_04(d) -3/Research -3/Garrison (discovered 2 exits: *Res x2) -3/Research -3/Garrison (discovered 2 exits: *Res x2) -2/Research (discovered 4 exits: *Acc x3 / [Qua]) -1/Access -1/Garrison (discovered 2 exits: [*Acc x2]) -1/Access (discovered 1 exit: [Sur]) History --------- Turn | Location | Event 6 | -11/Scrapyard | Discovered new exit (range 16) 93 | -11/Scrapyard | Upgraded with Weapon slot (x2) 108 | -11/Scrapyard | Upgraded with Propulsion slot (x1) 153 | -11/Scrapyard | Entered Materials 256 | -10/Materials | Discovered new exit (range 15) 301 | -10/Materials | Build established: Gunner 333 | -10/Materials | Discovered new exit (range 16) 654 | -10/Materials | Discovered new exit (range 15) 820 | -10/Materials | Reached level 2 823 | -10/Materials | Upgraded with Utility slot (x1) 925 | -10/Materials | Discovered new exit (range 5) 937 | -10/Materials | Entered another Materials area 939 | -9/Materials | Reached level 3 1274 | -9/Materials | Build established: Tank 1328 | -9/Materials | Reached level 4 1346 | -9/Materials | Discovered new exit (range 13) 1350 | -9/Materials | Upgraded with Utility slot (x2) 1620 | -9/Materials | Reached level 5 1681 | -9/Materials | Upgraded with Utility slot (x1) 1821 | -9/Materials | Discovered new exit (range 4) 2141 | -9/Materials | Reached level 6 2248 | -9/Materials | Discovered new exit (range 18) 2272 | -9/Materials | Identified exit to Mines 2272 | -9/Materials | Identified exit to Storage 2412 | -9/Materials | Entered Storage 2412 | -9/Storage | Accompanied by 1 ally 2414 | -9/Storage | Reached level 7 2679 | -9/Storage | Reached level 8 2931 | -9/Storage | Met a pair of Derelict thieves 2935 | -9/Storage | Discovered new exit (range 16) 2952 | -9/Storage | Garrison activated, responded to threat 3025 | -9/Storage | Identified exit to Garrison 3090 | -9/Storage | Reached level 9 3091 | -9/Storage | Build established: Hacker-Tank 3612 | -9/Storage | First assault squad dispatched 3646 | -9/Storage | Entered Garrison 3718 | -9/Garrison | Triggered checkpoint 3779 | -9/Garrison | Garrison Relay disabled 3784 | -9/Garrison | Triggered checkpoint 3786 | -9/Garrison | Reached level 10 3807 | -9/Garrison | Destroyed 7 combat bots 3897 | -9/Garrison | Discovered new exit (range 8) 3958 | -9/Garrison | Triggered checkpoint 4051 | -9/Garrison | Discovered new exit (range 13) 4106 | -9/Garrison | Triggered checkpoint 4157 | -9/Garrison | Garrison Relay disabled 4238 | -9/Garrison | Triggered checkpoint 4238 | -9/Garrison | Triggered checkpoint 4358 | -9/Garrison | Triggered checkpoint 4394 | -9/Garrison | Garrison Relay disabled 4494 | -9/Garrison | Discovered new exit (range 11) 4512 | -9/Garrison | Installed Relay Interface Framework 4517 | -9/Garrison | Entered Materials 4519 | -8/Materials | Reached level 11 4680 | -8/Materials | Reached level 12 4873 | -8/Materials | Upgraded with Utility slot (x1) 5037 | -8/Materials | Repaired Weapon Shielding? 5195 | -8/Materials | Upgraded with Propulsion slot (x1) 5279 | -8/Materials | Discovered new exit (range 18) 5525 | -8/Materials | Discovered new exit (range 7) 5731 | -8/Materials | Reached level 13 5768 | -8/Materials | Identified exit to Garrison 5782 | -8/Materials | Entered Garrison 5790 | -8/Garrison | Expanded RIF knowledge: Program Shield 5842 | -8/Garrison | Triggered checkpoint 5872 | -8/Garrison | Garrison Relay disabled 5974 | -8/Garrison | Triggered checkpoint 5996 | -8/Garrison | Triggered checkpoint 6043 | -8/Garrison | Destroyed 14 combat bots 6062 | -8/Garrison | Discovered new exit (range 13) 6074 | -8/Garrison | Upgraded with Utility slot (x1) 6088 | -8/Garrison | Entered Materials 6325 | -8/Materials | Discovered new exit (range 3) 6392 | -8/Materials | Reached level 14 6595 | -8/Materials | Discovered new exit (range 5) 6708 | -8/Materials | Upgraded with Propulsion slot (x1) 7019 | -8/Materials | Discovered new exit (range 17) 7082 | -8/Materials | Entered Factory 7364 | -7/Factory | Reached level 15 7859 | -7/Factory | Garrison activated, responded to threat 8218 | -7/Factory | Discovered new exit (range 12) 8355 | -7/Factory | Discovered new exit (range 41) 8454 | -7/Factory | Identified exit to Garrison 8460 | -7/Factory | Entered Garrison 8460 | -7/Garrison | Accompanied by 1 ally 8490 | -7/Garrison | Triggered checkpoint 8529 | -7/Garrison | Garrison Relay disabled 8624 | -7/Garrison | Triggered checkpoint 8638 | -7/Garrison | Triggered checkpoint 8638 | -7/Garrison | Reached level 16 8644 | -7/Garrison | Triggered checkpoint 8662 | -7/Garrison | Triggered checkpoint 8747 | -7/Garrison | Destroyed 12 combat bots 8805 | -7/Garrison | Discovered new exit (range 16) 8831 | -7/Garrison | Garrison Relay disabled 8970 | -7/Garrison | Discovered new exit (range 9) 8986 | -7/Garrison | Expanded RIF knowledge: Alert ID Control 9008 | -7/Garrison | Triggered checkpoint 9026 | -7/Garrison | Garrison Relay disabled 9029 | -7/Garrison | Upgraded with Weapon slot (x1) 9146 | -7/Garrison | Garrison Relay disabled 9165 | -7/Garrison | Discovered new exit (range 15) 9186 | -7/Garrison | Triggered checkpoint 9197 | -7/Garrison | Triggered checkpoint 9392 | -7/Garrison | Triggered checkpoint 9392 | -7/Garrison | Garrison Relay disabled 9529 | -7/Garrison | Entered Factory 9529 | -7/Factory | Accompanied by 10 allies 9636 | -7/Factory | Fabricated O-16 Technician? 9684 | -7/Factory | Build established: Commander-Mutant 9806 | -7/Factory | Fabricated O-16 Technician? 9903 | -7/Factory | Discovered new exit (range 19) 9947 | -7/Factory | Identified exit to Factory 9997 | -7/Factory | Identified exit to Lower Caves 9997 | -7/Factory | Central database locked down 10288 | -7/Factory | Reached level 17 10514 | -7/Factory | Fabricated M-13 Machinist? 10520 | -7/Factory | Local fabrication network quarantined 10558 | -7/Factory | Build established: Commander-Tank 10669 | -7/Factory | Identified exit to Garrison 10693 | -7/Factory | Entered Garrison 10693 | -7/Garrison | Accompanied by 10 allies 10758 | -7/Garrison | Triggered checkpoint 10760 | -7/Garrison | Garrison Relay disabled 10815 | -7/Garrison | Spotted B-75 Beast 10832 | -7/Garrison | Destroyed B-75 Beast 11009 | -7/Garrison | Discovered exit to Factory (range 20) 11022 | -7/Garrison | Triggered checkpoint 11023 | -7/Garrison | Triggered checkpoint 11082 | -7/Garrison | Triggered checkpoint 11092 | -7/Garrison | Triggered checkpoint 11136 | -7/Garrison | Garrison Relay disabled 11140 | -7/Garrison | Triggered checkpoint 11158 | -7/Garrison | Triggered checkpoint 11167 | -7/Garrison | Garrison Relay disabled 11242 | -7/Garrison | Discovered exit to Factory (range 16) 11262 | -7/Garrison | Expanded RIF knowledge: Patrol Navigation 11303 | -7/Garrison | Garrison Relay disabled 11319 | -7/Garrison | Triggered checkpoint 11469 | -7/Garrison | Garrison Relay disabled 11488 | -7/Garrison | Discovered exit to Factory (range 10) 11546 | -7/Garrison | Entered Factory 11546 | -6/Factory | Accompanied by 8 allies 11548 | -6/Factory | Reached level 18 11548 | -6/Factory | Upgraded with Utility slot (x1) 11624 | -6/Factory | Garrison activated, responded to threat 11650 | -6/Factory | Identified exit to Factory 11715 | -6/Factory | Fabricated Drone Bay? 11919 | -6/Factory | Garrison activated, responded to threat 11920 | -6/Factory | Reached level 19 12002 | -6/Factory | Build established: Bothacker-Tank 12246 | -6/Factory | First assault squad dispatched 12752 | -6/Factory | Spotted B-75 Beast 12820 | -6/Factory | Fabricated Adv. Cooling System? 12962 | -6/Factory | Local fabrication network quarantined 13061 | -6/Factory | Manually triggered Chute Trap 13061 | -6/Factory | Sucked down chute 13061 | -6/Factory | Entered Waste 13063 | -6/Waste | Reached level 20 13064 | -6/Waste | Upgraded with Utility slot (x1) 13076 | -6/Waste | EMP discharged 13076 | -6/Waste | System corruption reached 10% 13080 | -6/Waste | 1 allies followed down the chute 13084 | -6/Waste | Spotted C-40 Crusher 13129 | -6/Waste | Spotted C-40 Crusher 13144 | -6/Waste | Spotted C-40 Crusher 13155 | -6/Waste | Spotted C-40 Crusher 13159 | -6/Waste | Spotted C-40 Crusher 13172 | -6/Waste | Discovered new exit (range 17) 13176 | -6/Waste | EMP discharged 13178 | -6/Waste | Spotted C-40 Crusher 13184 | -6/Waste | Crushed by Compactor (1 part destroyed) 13196 | -6/Waste | Entered Factory 13257 | -6/Factory | Repaired Particle Charger 13493 | -6/Factory | Identified exit to Garrison 13493 | -6/Factory | Entered Garrison 13493 | -6/Garrison | Accompanied by 1 ally 13528 | -6/Garrison | Triggered checkpoint 13565 | -6/Garrison | Garrison Relay disabled 13612 | -6/Garrison | Triggered checkpoint 13658 | -6/Garrison | Triggered checkpoint 13706 | -6/Garrison | Discovered new exit (range 18) 13726 | -6/Garrison | Triggered checkpoint 13731 | -6/Garrison | Garrison Relay disabled 13888 | -6/Garrison | Phase Generator disabled 13980 | -6/Garrison | Triggered checkpoint 14042 | -6/Garrison | Triggered checkpoint 14087 | -6/Garrison | Garrison Relay disabled 14138 | -6/Garrison | Discovered new exit (range 21) 14174 | -6/Garrison | Expanded RIF knowledge: Structural Interface 14195 | -6/Garrison | Entered Factory 14195 | -6/Factory | Accompanied by 3 allies 14331 | -6/Factory | Build established: Bothacker-Mutant 14466 | -6/Factory | Fabricated O-16 Technician? 14545 | -6/Factory | First assault squad dispatched 14638 | -6/Factory | Reached level 21 14730 | -6/Factory | Fabricated Y-54 Guardian? 14795 | -6/Factory | Identified exit to Lower Caves 15214 | -6/Factory | Entered another Factory area 15214 | -5/Factory | Accompanied by 6 allies 15323 | -5/Factory | Spotted B-75 Beast 15517 | -5/Factory | Identified exit to Upper Caves 15590 | -5/Factory | Reached level 22 15676 | -5/Factory | Identified exit to Factory 15740 | -5/Factory | Garrison activated, responded to threat 15825 | -5/Factory | Upgraded with Weapon slot (x1) 15905 | -5/Factory | Fabricated Drone Bay? 16256 | -5/Factory | Fabricated Imp. Weapon Shielding? 16545 | -5/Factory | Reached level 23 16606 | -5/Factory | Identified exit to Garrison 16611 | -5/Factory | Entered Garrison 16611 | -5/Garrison | Accompanied by 8 allies 16618 | -5/Garrison | Triggered checkpoint 16647 | -5/Garrison | Garrison Relay disabled 16700 | -5/Garrison | Triggered checkpoint 16711 | -5/Garrison | Triggered checkpoint 16716 | -5/Garrison | Triggered checkpoint 16718 | -5/Garrison | Triggered checkpoint 16792 | -5/Garrison | Triggered checkpoint 16793 | -5/Garrison | Discovered new exit (range 23) 16832 | -5/Garrison | Garrison Relay disabled 16874 | -5/Garrison | Discovered new exit (range 74) 16893 | -5/Garrison | Expanded RIF knowledge: Autooverride 16939 | -5/Garrison | Discovered new exit (range 42) 17022 | -5/Garrison | Garrison Relay disabled 17113 | -5/Garrison | Entered Factory 17113 | -5/Factory | Accompanied by 1 ally 17218 | -5/Factory | Discovered exit to Factory (range 22) 17398 | -5/Factory | Build established: Hacker-Tank 17587 | -5/Factory | Reached level 24 17625 | -5/Factory | Fabricated M-13 Machinist? 17658 | -5/Factory | Upgraded with Utility slot (x1) 17899 | -5/Factory | Discovered exit to Factory (range 85) 17951 | -5/Factory | Identified exit to Garrison 17951 | -5/Factory | Entered Garrison 18080 | -5/Garrison | Destroyed 8 combat bots 18104 | -5/Garrison | Triggered checkpoint 18116 | -5/Garrison | Garrison Relay disabled 18192 | -5/Garrison | Triggered checkpoint 18271 | -5/Garrison | Discovered exit to Factory (range 10) 18271 | -5/Garrison | Triggered checkpoint 18271 | -5/Garrison | Triggered checkpoint 18287 | -5/Garrison | Triggered checkpoint 18305 | -5/Garrison | Garrison Relay disabled 18442 | -5/Garrison | Triggered checkpoint 18492 | -5/Garrison | Destroyed 8 combat bots 18527 | -5/Garrison | Discovered exit to Factory (range 16) 18552 | -5/Garrison | Triggered checkpoint 18594 | -5/Garrison | Garrison Relay disabled 18703 | -5/Garrison | Garrison Relay disabled 18724 | -5/Garrison | Discovered exit to Factory (range 8) 18737 | -5/Garrison | Expanded RIF knowledge: Autooverride 18832 | -5/Garrison | Entered Factory 18832 | -4/Factory | Accompanied by 1 ally 18834 | -4/Factory | Reached level 25 18981 | -4/Factory | Fabricated Railgun (x2) 19115 | -4/Factory | Garrison activated, responded to threat 19120 | -4/Factory | First assault squad dispatched 19137 | -4/Factory | Fabricated M-13 Machinist (x1) 19282 | -4/Factory | Destroyed 9 combat bots 19319 | -4/Factory | Core integrity fell below 50% 19422 | -4/Factory | Manually triggered Chute Trap 19422 | -4/Factory | Sucked down chute 19422 | -4/Factory | Entered Waste 19423 | -4/Waste | Joined by Warlord forces that had cleared the area 19424 | -4/Waste | Build established: Botlord-Tank 19439 | -4/Waste | Found Prototype Device 19439 | -4/Waste | Identified Exp. Weapon Cycler 19500 | -4/Waste | A Compactor rumbled back to life 19501 | -4/Waste | Destroyed C-40 Crusher 19546 | -4/Waste | Discovered new exit (range 11) 19573 | -4/Waste | Entered Factory 19573 | -4/Factory | Accompanied by 20 allies 19583 | -4/Factory | Identified exit to Upper Caves 19583 | -4/Factory | Identified exit to Extension 19583 | -4/Factory | Identified exit to Armory 19598 | -4/Factory | Reached level 26 19792 | -4/Factory | Entered Extension 19792 | -4/Extension | Accompanied by 13 allies 19797 | -4/Extension | Disrupted transfer network 19898 | -4/Extension | Rescued a captive Derelict 19948 | -4/Extension | Energy Cycler disabled 19948 | -4/Extension | Rescued a captive Derelict 19949 | -4/Extension | Rescued a captive Derelict 19953 | -4/Extension | Rescued a captive Derelict 19953 | -4/Extension | Rescued a captive Derelict 19955 | -4/Extension | Rescued a captive Derelict 20023 | -4/Extension | Identified exit to Cetus 20090 | -4/Extension | Spotted B-86 Titan 20093 | -4/Extension | Discovered new exit (range 22) 20108 | -4/Extension | Spotted B-86 Titan 20113 | -4/Extension | Destroyed B-86 Titan 20117 | -4/Extension | Reached level 27 20124 | -4/Extension | Destroyed B-86 Titan 20143 | -4/Extension | Extracted ID and sensor layout for unrecognized location from A7's data core 20303 | -4/Extension | Discovered new exit (range 18) 20357 | -4/Extension | Entered Cetus 20357 | -4/Cetus | Accompanied by 17 allies 20372 | -4/Cetus | Spotted Cetus Guard 20372 | -4/Cetus | Spotted Cetus Guard 20374 | -4/Cetus | Spotted Cetus Guard 20375 | -4/Cetus | Spotted Cetus Guard 20376 | -4/Cetus | Allies destroyed Cetus Guard 20385 | -4/Cetus | Destroyed Cetus Guard 20392 | -4/Cetus | Destroyed Cetus Guard 20394 | -4/Cetus | Allies destroyed Cetus Guard 20547 | -4/Cetus | Discovered new exit (range 20) 20621 | -4/Cetus | Entered Archives 20621 | -4/Archives | Accompanied by 7 allies 20645 | -4/Archives | Discovered new exit (range 19) 20652 | -4/Archives | Discovered new exit (range 18) 20689 | -4/Archives | Discovered new exit (range 20) 20693 | -4/Archives | Unable to access archive contents 20724 | -4/Archives | Entered Hub_04(d) 20724 | -4/Hub_04(d) | Accompanied by 7 allies 20724 | -4/Hub_04(d) | Discovered new exit (range 11) 20796 | -4/Hub_04(d) | Network Hub disabled 20800 | -4/Hub_04(d) | Entered Research 20800 | -3/Research | Accompanied by 5 allies 20802 | -3/Research | Reached level 28 20810 | -3/Research | Upgraded with Utility slot (x1) 21056 | -3/Research | Spotted B-86 Titan 21069 | -3/Research | Destroyed B-86 Titan 21080 | -3/Research | Found Fusion Bomb Launcher 21088 | -3/Research | Fabricated Y-64 Sentinel? 21274 | -3/Research | Garrison activated, responded to threat 21389 | -3/Research | Reached level 29 21439 | -3/Research | Core integrity fell below 50% 21482 | -3/Research | Identified exit to Garrison 21482 | -3/Research | Entered Garrison 21513 | -3/Garrison | Garrison Relay disabled 21549 | -3/Garrison | Spotted B-86 Titan 21671 | -3/Garrison | Destroyed 11 combat bots 21685 | -3/Garrison | Triggered checkpoint 21685 | -3/Garrison | Garrison Relay disabled 21758 | -3/Garrison | Discovered new exit (range 8) 21861 | -3/Garrison | Discovered new exit (range 17) 21885 | -3/Garrison | Expanded RIF knowledge: Coupler Efficiency 21890 | -3/Garrison | Entered Research 21910 | -3/Research | Found Prototype Device 21910 | -3/Research | Identified Exp. ECM Suite 21958 | -3/Research | Spotted B-86 Titan 22339 | -3/Research | Garrison activated, responded to threat 22373 | -3/Research | Identified exit to Garrison 22373 | -3/Research | Entered Garrison 22474 | -3/Garrison | Triggered checkpoint 22494 | -3/Garrison | Garrison Relay disabled 22552 | -3/Garrison | Triggered checkpoint 22552 | -3/Garrison | Triggered checkpoint 22706 | -3/Garrison | Triggered checkpoint 22773 | -3/Garrison | Destroyed 7 combat bots 22832 | -3/Garrison | Triggered checkpoint 22838 | -3/Garrison | Garrison Relay disabled 22841 | -3/Garrison | Discovered new exit (range 20) 22899 | -3/Garrison | Expanded RIF knowledge: Crosswire 22899 | -3/Garrison | Reached level 30 23036 | -3/Garrison | Triggered checkpoint 23075 | -3/Garrison | Garrison Relay disabled 23092 | -3/Garrison | Discovered new exit (range 20) 23136 | -3/Garrison | Entered Research 23148 | -2/Research | Spotted B-90 Cyclops 23216 | -2/Research | Found Prototype Device 23216 | -2/Research | Identified Exp. Thermal Shield 23452 | -2/Research | System corruption reached 10% 23516 | -2/Research | Core integrity fell below 50% 23561 | -2/Research | Reached level 31 23578 | -2/Research | Upgraded with Utility slot (x1) 23650 | -2/Research | Spotted B-90 Cyclops 23716 | -2/Research | Destroyed B-90 Cyclops 23798 | -2/Research | Identified exit to Access 23840 | -2/Research | Discovered new exit (range 9) 24128 | -2/Research | Garrison activated, responded to threat 24170 | -2/Research | Entered Access 24170 | -1/Access | Accompanied by 5 allies 24172 | -1/Access | Reached level 32 24172 | -1/Access | Reached level 33 24183 | -1/Access | Identified exit to Garrison 24186 | -1/Access | Entered Garrison 24186 | -1/Garrison | Accompanied by 5 allies 24239 | -1/Garrison | Garrison Relay disabled 24281 | -1/Garrison | Spotted B-99 Colossus 24285 | -1/Garrison | Triggered checkpoint 24292 | -1/Garrison | Triggered checkpoint 24303 | -1/Garrison | Destroyed B-99 Colossus 24322 | -1/Garrison | Triggered checkpoint 24364 | -1/Garrison | Triggered checkpoint 24382 | -1/Garrison | Garrison Relay disabled 24405 | -1/Garrison | Discovered new exit (range 10) 24428 | -1/Garrison | Phase Generator disabled 24428 | -1/Garrison | Reached level 34 24518 | -1/Garrison | Garrison Relay disabled 24559 | -1/Garrison | Discovered new exit (range 19) 24591 | -1/Garrison | Expanded RIF knowledge: Coupler Efficiency 24599 | -1/Garrison | Entered Access 24599 | -1/Access | Accompanied by 5 allies 24602 | -1/Access | Maximum security lockdown engaged 24741 | -1/Access | Spotted B-99 Colossus 24761 | -1/Access | Discovered new exit (range 22) 24823 | -1/Access | Core integrity fell below 50% 24861 | -1/Access | Core integrity fell below 20% 24863 | -1/Access | Destroyed by G-73 Enforcer with Phase Gun Last Messages --------------- 24852_ K-01 Serf collects debris. 24852_ R-10 Processor collects Adv. Heat Sink. 24853_ K-01 Serf collects debris. 24853_ H-88 Terminator destroyed. 24854_ K-01 Serf collects debris. 24857_ Acquired 25 matter. 24858_ U-05 Engineer builds a Wall. 24858_ K-01 Serf collects debris. 24858_ Fabricator disabled. 24859_ Biometal Leg blown off. 24859_ E-15 Imp destroyed. 24859_ K-01 Serf collects debris. 24859_ W-44 Eye sends out distress signal. 24859_ U-05 Engineer builds a Wall. 24860_ System Restoration Module purges 1% of system corruption (5%). 24861_ Acquired Biometal Leg. 24861_ K-01 Serf collects debris. 24862_ Acquired 23 matter. 24862_ K-01 Serf collects debris. [Achievement: 50k Club] Map ----- +----------------------------------------------------+ | ??????????????????????????????###?#?##??######?#?? | | ???????????????????????????? #######?#######?#### | | ????????????????????????? ?? ###?#?############?#? | | ???????????????????????? ? ###?###########???##? | | ????????????????????? ?? ?#########?######### | | ?????????????????????? #################?## | | ???????????????????? ? #########?#######?#?? | | ??????????????????????#/###?##################### | | ????????????????????# #######?####?########### | | ????????????????? ? ? ######################## | | ???????????????? ? ? ##?##################### | | ????????????????#####? ######################## | | ???????????????#?###?# ###############?########## | | ?????????????????##### ?##?#########??###### | | ??????????????######?#? #######?############# | | ??????????????######## ##################### | | ????????????#?####?### #### # *=%#### | | ????????????####?##### #### # [!!######+### | | ???????????######?####? #### + !%!%! | | ???????????# #k #### # !=%%########## | | ???????????# # #### # =%[*## | | ???????????# ] # ?### = ]%##%!|##" | | ???????????# [ +=*############=k%### | | ???????????? #%ggl!k% %g|%*!# # | | ???????????? ??F "? #*u[[ u g=ilu%!=### " | | ????????????? """"" # b @ b w g[%[/%!### """ | | ????????????? """" # ################## "" | | ???????????#########?# ### ###### =" | | ?????????????#?#?##### #### # ###### !% | | ???????????#?#??###### ###### # ###?# * | | ?????????????######### ###### ####### | | ????????????#?########? ################## | | ?????????????##?##?#?# #??#?##################### | | ??????????????#######? ########################## | | ?????????????#?####### #?#?###"################## | | ?????????????#??####?# """T"""" """" | | ????????????????##?### ""? """"? "?"" | | ????????????????#???#? " """""" """" | | ????????????????#???## ? ? " " " "?"" | | ?????????????????#??##? " " "" " """" | | ??????????????????#?## ??? ? " <" " """" | | ????????????????????##? ? ? ? " " """" | | ???????????????????#?? ? " ?""""" """" | | ?????????????????????#?? ? ? ? """" | | ????????????????????##? ??? ?? """" | | ?????????????????????#??#?#????"##?###?####?###### | | ????????????????????????##?##?#?##############?### | | ??????????????????????????#?####??#####??#??##?#?# | | ??????????????????????????????##????#???#?#??#??## | | ?????????????????????????????????#????#??#?????### | +----------------------------------------------------+ Best States ------------- Heat Dissipation 116 Energy Generation 36 Energy Capacity 550 Matter Stores 500 Matter Capacity 500 Sight Range 22 Robot Scan Range 4 Terrain Scan Range 24 Terrain Scan Density 410 Corruption Prevention 12 Armor Coverage 675 Resistance: KI 30 Resistance: TH 20 Resistance: EX 10 Resistance: EM 15 Propulsion Shielding 66 Weapon Shielding 66 Reclamation Efficiency 25 Weapon Cycling 20 Evasion (%) 40 Recoil Reduction 6 Particle Charging 25 Overload Regulation 40 Offensive Hacking 15 Defensive Hacking 15 Item Schematics ----------------- Cooling System | -9/Materials | Scanalyzed Shotgun | -9/Materials | Extracted Hrd. Light Armor Plating | -9/Materials | Scanalyzed Grenade Launcher | -9/Materials | Scanalyzed Reflective Plating | -9/Materials | Scanalyzed Weapon Shielding | -9/Materials | Scanalyzed Particle Charger | -9/Materials | Scanalyzed Lrn. Terrain Scanner | -9/Storage | Hacked Titanium Leg | -9/Storage | Hacked Lightning Gun | -9/Storage | Hacked Carbon-fiber Leg | -8/Materials | Hacked Drone Bay | -8/Materials | Scanalyzed Insulated Plating | -8/Materials | Scanalyzed Missile Launcher | -8/Materials | Scanalyzed Imp. Propulsion Shielding | -8/Materials | Scanalyzed Med. Reactive Plating | -8/Materials | Scanalyzed Adv. Terrain Scanner | -8/Materials | Scanalyzed Hrd. Medium Armor Plating | -8/Materials | Scanalyzed Cld. Ion Engine | -8/Materials | Scanalyzed Imp. Weapon Shielding | -8/Materials | Hacked Recoil Stabilizer | -8/Materials | Hacked Adv. EMP Blaster | -7/Factory | Scanalyzed Imp. Remote Datajack | -7/Factory | Hacked Imp. Weapon Cycler | -7/Factory | Hacked Gyrokinetic Inverter | -7/Factory | Hacked Adv. Transmission Jammer | -6/Factory | Hacked Mass Driver | -6/Factory | Scanalyzed Imp. Core Analyzer | -6/Factory | Scanalyzed Hardcell Cannon | -5/Factory | Hacked Centrium Wheel | -5/Factory | Hacked Biometal Leg | -5/Factory | Hacked Adv. Plasma Cannon | -5/Factory | Scanalyzed Lrn. Tractor Beam | -5/Factory | Scanalyzed Weapon Cycler | -5/Factory | Scanalyzed Transmission Jammer | -5/Factory | Extracted Imp. Remote Force Field | -5/Factory | Hacked Robot Schematics ------------------ O-16 Technician | -9/Materials | Hacked M-13 Machinist | -7/Factory | Hacked Y-54 Guardian | -7/Factory | Hacked Y-64 Sentinel | -5/Factory | Hacked Fabricated ------------ O-16 Technician | x1 | -7/Factory O-16 Technician | x1 | -7/Factory M-13 Machinist | x1 | -7/Factory Drone Bay | x1 | -6/Factory Adv. Cooling System | x1 | -6/Factory | Preloaded O-16 Technician | x1 | -6/Factory Y-54 Guardian | x2 | -6/Factory | Preloaded Drone Bay | x1 | -5/Factory Imp. Weapon Shielding | x2 | -5/Factory M-13 Machinist | x1 | -5/Factory Railgun | x2 | -4/Factory | Preloaded M-13 Machinist | x1 | -4/Factory Y-64 Sentinel | x2 | -3/Research Alien Tech Used ----------------- None Achievements -------------- 50k Club Giant Slayer Pwned Challenges ------------ None RPGLIKE | -11 -10 -9 -9 -9 -8 -8 -8 -7 -7 -7 -7 -6 -6 -6 -6 -6 -5 -5 -5 -5 -4 -4 -4 -4 -4 -4 -4 -3 -3 -3 -3 -2 -1 -1 -1 --------- Run | Scr Mat Mat Sto Gar Mat Gar Mat Fac Gar Fac Gar Fac Was Fac Gar Fac Fac Gar Fac Gar Fac Was Fac Ext Cet Arc Hub Res Gar Res Gar Res Acc Gar Acc Levels Raised 33 | . 1 4 3 1 3 . 1 1 1 1 . 2 1 . . 1 2 . 1 . 1 . 1 1 . . . 2 . . 1 1 2 1 . XP Earned 53721 | 3000 1940 6914 3903 1862 3427 1011 832 2107 1505 545 510 3927 67 179 901 780 2630 703 937 651 2013 67 239 1694 450 184 216 1879 774 96 691 2768 2000 1569 750 XP Spent 50355 | 2910 1575 5800 3190 2985 2500 2000 1100 1570 1100 . . 3700 2600 . . 100 3210 . 3125 . . . . . 1200 . . 3200 . . 525 3940 . 3825 200 Upgrades 79 | 8 6 10 12 6 2 1 1 2 1 . . 3 1 . . 2 6 . 2 . . . . . 2 . . 1 . . 2 3 . 6 2 Propulsion Slot 3 | 1 . . . . 1 . 1 . . . . . . . . . . . . . . . . . . . . . . . . . . . . Utility Slot 11 | . 1 3 . . 1 1 . . . . . 1 1 . . . . . 1 . . . . . . . . 1 . . . 1 . . . Weapon Slot 4 | 2 . . . . . . . . 1 . . . . . . . 1 . . . . . . . . . . . . . . . . . . Core Integrity 4 | . 1 . . 1 . . . . . . . . . . . 2 . . . . . . . . . . . . . . . . . . . Heat Dissipation 10 | 3 . . 2 . . . . . . . . . . . . . 3 . . . . . . . . . . . . . . 2 . . . Energy Generation 1 | . . . 1 . . . . . . . . . . . . . . . . . . . . . . . . . . . . . . . . Energy Storage 1 | . . . . 1 . . . . . . . . . . . . . . . . . . . . . . . . . . . . . . . Matter Storage 4 | . . . . 1 . . . . . . . . . . . . . . 1 . . . . . . . . . . . 2 . . . . Mass Support 3 | . . 2 . 1 . . . . . . . . . . . . . . . . . . . . . . . . . . . . . . . Inventory Capacity 6 | . 1 1 1 2 . . . 1 . . . . . . . . . . . . . . . . . . . . . . . . . . . Sight Range 6 | . . 2 . . . . . . . . . . . . . . . . . . . . . . 2 . . . . . . . . 2 . Sensor Range 2 | . . . . . . . . . . . . . . . . . . . . . . . . . . . . . . . . . . 2 . Terrain Scan Density 4 | . . . 1 . . . . 1 . . . . . . . . . . . . . . . . . . . . . . . . . . 2 Ranged Accuracy 6 | 2 . 2 . . . . . . . . . . . . . . . . . . . . . . . . . . . . . . . 2 . Hack Attack % 3 | . 2 . . . . . . . . . . 1 . . . . . . . . . . . . . . . . . . . . . . . Hack Defense % 3 | . 1 . 1 . . . . . . . . 1 . . . . . . . . . . . . . . . . . . . . . . . KI Resistance % 2 | . . . 2 . . . . . . . . . . . . . . . . . . . . . . . . . . . . . . . . TH Resistance % 4 | . . . 2 . . . . . . . . . . . . . 2 . . . . . . . . . . . . . . . . . . EX Resistance % 2 | . . . 2 . . . . . . . . . . . . . . . . . . . . . . . . . . . . . . . . Protomatter Created 7771 | . 270 454 329 540 346 158 313 95 293 149 230 222 . 166 414 98 486 103 333 357 242 . 50 369 201 . . 228 174 137 331 288 . 168 227 Integrity Restored 14993 | . 303 829 635 699 845 130 395 132 682 152 406 429 . 392 717 331 560 170 636 606 564 393 . 618 330 . . 576 411 410 1192 1207 . 195 48 Core 10760 | . 303 663 392 489 595 64 181 104 430 113 276 356 . 287 536 222 363 89 412 355 564 122 . 447 179 . . 550 411 377 698 976 . 158 48 Parts 4233 | . . 166 243 210 250 66 214 28 252 39 130 73 . 105 181 109 197 81 224 251 . 271 . 171 151 . . 26 . 33 494 231 . 37 . Protomatter Decayed 8621 | . 144 135 294 291 57 82 166 48 294 446 430 305 . . 210 366 365 616 90 195 296 97 94 1100 407 . . 107 59 . 247 708 . 504 468 Game ------ Seed BiocellSeismicBeam Manual? 0 Play Time 08:12:45 Cumulative 829.5 hours Start 2019.12.19 @ 08:45:44 End 2019.12.19 @ 22:21:32 Sessions 3 Manual Loads 0 Difficulty Rogue Special Mode Winter2019/RPGLIKE Game No. 295 Rogue 295 Adventurer 0 Explorer 0 Win Type - Total 12 Types 11/0/1/0/0/0/0 Lore% 76 Gallery% 86 Achievement% 68 Wizard Run 0 Options --------- ASCII 0 Keyboard 1 Movement Numpad Keybinds 0 Fullscreen 2 Font 18/SmallcapsGlow Map View 112x50 Tactical HUD 1 Map Filters NONE Filters NONE Steam 1 RUN: 962ccce4-417b-4374-a8ea-bac4420813e1